Body Name,Body,Creditor Name,Spending Service,Nature of Spend,Ledger Date,Reference Number,Goods Amount (excluding VAT)
Lancaster City Council,30UH,1env Global Pest Control Produ,Environmental Services,Equipment and Tools - General,10/10/2017,40627,39.99
Lancaster City Council,30UH,32090-35666 Taxis,Health & Housing,Travel Warrants,01/12/2017,spc002570,69.30
Lancaster City Council,30UH,3C Durham Station Car Park,Health & Housing,Hospitality,01/12/2017,bpc005862,7.50
Lancaster City Council,30UH,3WM Ltd,Environmental Services,Office Equipment,09/10/2017,40614,-66.14
Lancaster City Council,30UH,3WM Ltd,Environmental Services,Printing & Stationery,09/10/2017,40615,5.16
Lancaster City Council,30UH,3WM Ltd,Environmental Services,Printing & Stationery,09/10/2017,40616,31.99
Lancaster City Council,30UH,3WM Ltd,Environmental Services,Printing & Stationery,27/10/2017,40806,35.03
Lancaster City Council,30UH,A and G Trade Plastics Ltd,Environmental Services,Materials - General,30/10/2017,40860,579.46
Lancaster City Council,30UH,AA Media,Regeneration and Planning,Marketing,09/10/2017,40574,511.50
Lancaster City Council,30UH,AbeBooks,Regeneration and Planning,Office Equipment,13/12/2017,npc002246,11.76
Lancaster City Council,30UH,Academy Class,Health & Housing,Marketing,07/11/2017,bpc005793,428.76
Lancaster City Council,30UH,Academy Class,Regeneration and Planning,Marketing,30/11/2017,npc002220,428.76
Lancaster City Council,30UH,Acorn Fire &amp;amp; Security,Resources,Equipment and Tools - General,27/11/2017,ppc001122,364.38
Lancaster City Council,30UH,Adobe,Regeneration and Planning,Marketing,18/12/2017,npc002255,141.30
Lancaster City Council,30UH,Adsa Lancaster,Health & Housing,Materials For Resale,31/10/2017,bpc005782,6.00
Lancaster City Council,30UH,Aggregate Industries UK Ltd,Environmental Services,Other Construction Costs,04/12/2017,41524,63.48
Lancaster City Council,30UH,ahs ltd,Environmental Services,R & M - Buildings (Within Service),24/10/2017,40775,489.90
Lancaster City Council,30UH,Aiko Roof Bars,Resources,Equipment and Tools - General,10/10/2017,fpc000262,45.00
Lancaster City Council,30UH,Aldi,Governance,Civic Receptions & Mayoral Functions,30/10/2017,dpc000587,10.37
Lancaster City Council,30UH,Aldi,Regeneration and Planning,Marketing,09/10/2017,40594,87.47
Lancaster City Council,30UH,Aldi,Regeneration and Planning,Marketing,09/10/2017,40584,184.65
Lancaster City Council,30UH,ALEXANDERS DIRECT,Health & Housing,Equipment Funded by Reserves,31/10/2017,hpc000610,549.00
Lancaster City Council,30UH,all4decor,Health & Housing,Equipment and Tools - General,08/11/2017,bpc005804,51.57
Lancaster City Council,30UH,Alpha Engraving Limited,Environmental Services,R & M - General,05/12/2017,41545,27.36
Lancaster City Council,30UH,Amazon,Environmental Services,Printing & Stationery,28/12/2017,41904,-10.09
Lancaster City Council,30UH,Amazon,Environmental Services,Equipment and Tools - General,06/10/2017,40529,-7.99
Lancaster City Council,30UH,Amazon,Resources,Infrastructure - Update & Maintenance,05/12/2017,jpc001166,-0.38
Lancaster City Council,30UH,Amazon,Environmental Services,Materials - General,30/11/2017,41470,0.49
Lancaster City Council,30UH,Amazon,Resources,Infrastructure - Update & Maintenance,03/11/2017,jpc001141,0.99
Lancaster City Council,30UH,Amazon,Health & Housing,Equipment and Tools - General,04/10/2017,spc002424,2.46
Lancaster City Council,30UH,Amazon,Environmental Services,Printing & Stationery,14/12/2017,41698,2.46
Lancaster City Council,30UH,Amazon,Governance,Celebrating Success Awards,31/10/2017,lpc000571,2.68
Lancaster City Council,30UH,Amazon,Environmental Services,Materials - General,30/11/2017,41468,2.91
Lancaster City Council,30UH,Amazon,Resources,Infrastructure - Update & Maintenance,03/11/2017,jpc001140,3.14
Lancaster City Council,30UH,Amazon,Resources,Infrastructure - Update & Maintenance,01/12/2017,jpc001161,3.14
Lancaster City Council,30UH,Amazon,Resources,Infrastructure - Update & Maintenance,01/12/2017,jpc001164,3.32
Lancaster City Council,30UH,Amazon,Health & Housing,Materials - General,29/11/2017,spc002565,3.99
Lancaster City Council,30UH,Amazon,Regeneration and Planning,Marketing,09/10/2017,40596,4.16
Lancaster City Council,30UH,Amazon,Health & Housing,Printing & Stationery,13/12/2017,bpc005891,4.16
Lancaster City Council,30UH,Amazon,Health & Housing,Equipment and Tools - General,29/10/2017,bpc005740,4.82
Lancaster City Council,30UH,Amazon,Health & Housing,Equipment Funded by Reserves,31/10/2017,hpc000609,4.95
Lancaster City Council,30UH,Amazon,Environmental Services,Equipment and Tools - General,02/11/2017,40989,5.20
Lancaster City Council,30UH,Amazon,Resources,Infrastructure - Update & Maintenance,03/11/2017,jpc001132,5.39
Lancaster City Council,30UH,Amazon,Resources,Capital Payments To Contractors,03/10/2017,jpc001121,5.82
Lancaster City Council,30UH,Amazon,Regeneration and Planning,Printing & Stationery,10/11/2017,41204,5.92
Lancaster City Council,30UH,Amazon,Resources,Capital Payments To Contractors,03/10/2017,jpc001120,6.24
Lancaster City Council,30UH,Amazon,Health & Housing,Equipment and Tools - General,29/12/2017,bpc005911,6.40
Lancaster City Council,30UH,Amazon,Health & Housing,Equipment and Tools - General,30/10/2017,spc002483,6.48
Lancaster City Council,30UH,Amazon,Health & Housing,Printing & Stationery,13/12/2017,bpc005890,6.95
Lancaster City Council,30UH,Amazon,Environmental Services,Equipment and Tools - General,22/12/2017,41776,7.38
Lancaster City Council,30UH,Amazon,Governance,Celebrating Success Awards,31/10/2017,lpc000569,7.44
Lancaster City Council,30UH,Amazon,Environmental Services,Mobile Telephones,09/10/2017,40711,7.86
Lancaster City Council,30UH,Amazon,Resources,Infrastructure - Update & Maintenance,03/11/2017,jpc001144,7.99
Lancaster City Council,30UH,Amazon,Resources,Infrastructure - Update & Maintenance,01/12/2017,jpc001163,7.99
Lancaster City Council,30UH,Amazon,Health & Housing,Equipment and Tools - General,08/11/2017,bpc005808,8.09
Lancaster City Council,30UH,Amazon,Health & Housing,Equipment and Tools - General,30/10/2017,spc002494,9.10
Lancaster City Council,30UH,Amazon,Health & Housing,Equipment and Tools - General,30/10/2017,spc002500,9.69
Lancaster City Council,30UH,Amazon,Health & Housing,Printing & Stationery,31/10/2017,bpc005778,9.98
Lancaster City Council,30UH,Amazon,Resources,Infrastructure - Update & Maintenance,03/11/2017,jpc001139,9.99
Lancaster City Council,30UH,Amazon,Resources,Infrastructure - Update & Maintenance,01/12/2017,jpc001160,9.99
Lancaster City Council,30UH,Amazon,Health & Housing,Equipment and Tools - General,08/11/2017,bpc005809,11.30
Lancaster City Council,30UH,Amazon,Health & Housing,Equipment and Tools - General,08/11/2017,bpc005810,11.30
Lancaster City Council,30UH,Amazon,Health & Housing,Equipment and Tools - General,22/11/2017,bpc005819,11.59
Lancaster City Council,30UH,Amazon,Health & Housing,Equipment and Tools - General,30/10/2017,spc002496,12.19
Lancaster City Council,30UH,Amazon,Health & Housing,Equipment and Tools - General,13/12/2017,bpc005893,13.12
Lancaster City Council,30UH,Amazon,Health & Housing,Equipment and Tools - General,29/10/2017,bpc005738,13.48
Lancaster City Council,30UH,Amazon,Health & Housing,Equipment and Tools - General,03/11/2017,spc002512,13.50
Lancaster City Council,30UH,Amazon,Health & Housing,Equipment and Tools - General,04/12/2017,spc002576,13.50
Lancaster City Council,30UH,Amazon,Regeneration and Planning,Marketing,09/10/2017,40597,13.99
Lancaster City Council,30UH,Amazon,Health & Housing,Equipment and Tools - General,30/10/2017,spc002497,14.96
Lancaster City Council,30UH,Amazon,Health & Housing,Equipment and Tools - General,09/11/2017,bpc005812,15.26
Lancaster City Council,30UH,Amazon,Resources,Mobile Telephones,06/10/2017,jpc001122,15.67
Lancaster City Council,30UH,Amazon,Health & Housing,Service Training Budget,12/12/2017,hpc000647,16.08
Lancaster City Council,30UH,Amazon,Health & Housing,Printing & Stationery,13/12/2017,bpc005892,16.22
Lancaster City Council,30UH,Amazon,Governance,Celebrating Success Awards,31/10/2017,lpc000570,16.98
Lancaster City Council,30UH,Amazon,Environmental Services,R & M - Buildings (Within Service),17/10/2017,40699,17.26
Lancaster City Council,30UH,Amazon,Environmental Services,Equipment and Tools - General,06/11/2017,41053,17.87
Lancaster City Council,30UH,Amazon,Environmental Services,Equipment and Tools - General,23/10/2017,40746,17.92
Lancaster City Council,30UH,Amazon,Health & Housing,Office Equipment,01/11/2017,hpc000615,18.98
Lancaster City Council,30UH,Amazon,Health & Housing,Marketing & Promotion,09/10/2017,spc002455,19.90
Lancaster City Council,30UH,Amazon,Health & Housing,Printing & Stationery,30/10/2017,bpc005768,20.62
Lancaster City Council,30UH,Amazon,Resources,Mobile Telephones,03/11/2017,jpc001143,20.82
Lancaster City Council,30UH,Amazon,Health & Housing,Materials - General,31/10/2017,bpc005777,20.92
Lancaster City Council,30UH,Amazon,Regeneration and Planning,Office Equipment,12/12/2017,npc002240,20.98
Lancaster City Council,30UH,Amazon,Health & Housing,Equipment and Tools - General,30/10/2017,spc002484,21.23
Lancaster City Council,30UH,Amazon,Resources,Equipment and Tools - General,03/11/2017,jpc001142,21.29
Lancaster City Council,30UH,Amazon,Health & Housing,Office Equipment,05/12/2017,hpc000643,21.36
Lancaster City Council,30UH,Amazon,Resources,Mobile Telephones,03/11/2017,jpc001138,21.49
Lancaster City Council,30UH,Amazon,Resources,Mobile Telephones,03/10/2017,jpc001119,21.62
Lancaster City Council,30UH,Amazon,Resources,Office Equipment,03/10/2017,jpc001116,21.62
Lancaster City Council,30UH,Amazon,Environmental Services,Equipment and Tools - General,30/11/2017,41431,21.64
Lancaster City Council,30UH,Amazon,Health & Housing,Equipment and Tools - General,30/10/2017,bpc005762,21.97
Lancaster City Council,30UH,Amazon,Health & Housing,Equipment and Tools - General,30/10/2017,spc002493,21.98
Lancaster City Council,30UH,Amazon,Health & Housing,Equipment and Tools - General,30/11/2017,bpc005853,22.22
Lancaster City Council,30UH,Amazon,Health & Housing,Printing & Stationery,24/11/2017,bpc005827,22.32
Lancaster City Council,30UH,Amazon,Health & Housing,Equipment and Tools - General,15/12/2017,spc002610,22.75
Lancaster City Council,30UH,Amazon,Regeneration and Planning,Exhibitions,07/11/2017,41082,22.98
Lancaster City Council,30UH,Amazon,Health & Housing,Equipment and Tools - General,30/10/2017,spc002495,23.89
Lancaster City Council,30UH,Amazon,Resources,Capital Payments To Contractors,03/10/2017,jpc001117,24.92
Lancaster City Council,30UH,Amazon,Health & Housing,Equipment and Tools - General,28/10/2017,bpc005731,24.97
Lancaster City Council,30UH,Amazon,Resources,Infrastructure - Update & Maintenance,29/11/2017,jpc001156,24.97
Lancaster City Council,30UH,Amazon,Environmental Services,Materials - General,28/12/2017,41899,24.99
Lancaster City Council,30UH,Amazon,Health & Housing,Equipment and Tools - General,30/10/2017,bpc005770,25.17
Lancaster City Council,30UH,Amazon,Governance,Printing & Stationery,30/11/2017,lpc000588,25.72
Lancaster City Council,30UH,Amazon,Governance,IT Consumables,14/12/2017,dpc000601,27.95
Lancaster City Council,30UH,Amazon,Health & Housing,Equipment and Tools - General,28/10/2017,bpc005732,28.80
Lancaster City Council,30UH,Amazon,Environmental Services,Materials - General,24/10/2017,40766,29.78
Lancaster City Council,30UH,Amazon,Health & Housing,Office Equipment,05/12/2017,hpc000646,29.98
Lancaster City Council,30UH,Amazon,Health & Housing,Printing & Stationery,30/10/2017,bpc005758,31.17
Lancaster City Council,30UH,Amazon,Health & Housing,Equipment and Tools - General,30/10/2017,spc002498,31.97
Lancaster City Council,30UH,Amazon,Environmental Services,Equipment and Tools - General,04/12/2017,41506,32.05
Lancaster City Council,30UH,Amazon,Health & Housing,Services - General,01/11/2017,hpc000616,32.94
Lancaster City Council,30UH,Amazon,Health & Housing,Materials - General,20/11/2017,spc002534,32.95
Lancaster City Council,30UH,Amazon,Environmental Services,Hospitality,29/11/2017,41425,33.32
Lancaster City Council,30UH,Amazon,Environmental Services,Printing & Stationery,28/12/2017,41900,33.38
Lancaster City Council,30UH,Amazon,Health & Housing,Materials - General,20/12/2017,spc002621,34.39
Lancaster City Council,30UH,Amazon,Health & Housing,Equipment and Tools - General,23/10/2017,bpc005720,34.70
Lancaster City Council,30UH,Amazon,Governance,Printing & Stationery,29/12/2017,lpc000614,34.94
Lancaster City Council,30UH,Amazon,Resources,Computer Equipment,03/11/2017,jpc001134,35.89
Lancaster City Council,30UH,Amazon,Health & Housing,Printing & Stationery,24/11/2017,bpc005826,37.80
Lancaster City Council,30UH,Amazon,Health & Housing,Equipment and Tools - General,08/11/2017,bpc005811,38.39
Lancaster City Council,30UH,Amazon,Environmental Services,Equipment and Tools - General,27/11/2017,41350,40.71
Lancaster City Council,30UH,Amazon,Health & Housing,Equipment and Tools - General,11/12/2017,spc002587,40.82
Lancaster City Council,30UH,Amazon,Environmental Services,Equipment and Tools - General,16/11/2017,41247,41.21
Lancaster City Council,30UH,Amazon,Health & Housing,Printing & Stationery,01/12/2017,spc002572,42.24
Lancaster City Council,30UH,Amazon,Health & Housing,Office Equipment,09/10/2017,hpc000591,42.46
Lancaster City Council,30UH,Amazon,Resources,Mobile Telephones,03/11/2017,jpc001137,42.98
Lancaster City Council,30UH,Amazon,Resources,Capital Payments To Contractors,03/10/2017,jpc001114,44.37
Lancaster City Council,30UH,Amazon,Health & Housing,Equipment and Tools - General,24/11/2017,bpc005825,44.43
Lancaster City Council,30UH,Amazon,Health & Housing,Equipment and Tools - General,02/10/2017,bpc005704,45.13
Lancaster City Council,30UH,Amazon,Resources,Mobile Telephones,09/10/2017,jpc001153,47.02
Lancaster City Council,30UH,Amazon,Resources,Infrastructure - Update & Maintenance,01/12/2017,jpc001165,47.49
Lancaster City Council,30UH,Amazon,Environmental Services,Materials - General,29/11/2017,41422,49.90
Lancaster City Council,30UH,Amazon,Resources,Infrastructure - Update & Maintenance,03/11/2017,jpc001133,50.74
Lancaster City Council,30UH,Amazon,Health & Housing,Corporate Safety,15/12/2017,spc002612,50.81
Lancaster City Council,30UH,Amazon,Health & Housing,Corporate Safety,02/10/2017,spc002418,51.92
Lancaster City Council,30UH,Amazon,Health & Housing,Equipment and Tools - General,13/12/2017,spc002606,54.97
Lancaster City Council,30UH,Amazon,Environmental Services,Equipment and Tools - General,28/12/2017,41805,56.80
Lancaster City Council,30UH,Amazon,Resources,Capital Payments To Contractors,03/10/2017,jpc001115,63.27
Lancaster City Council,30UH,Amazon,Resources,Infrastructure - Update & Maintenance,03/11/2017,jpc001131,66.72
Lancaster City Council,30UH,Amazon,Resources,Office Equipment,07/12/2017,fpc000274,73.13
Lancaster City Council,30UH,Amazon,Health & Housing,Equipment and Tools - General,30/10/2017,bpc005761,73.75
Lancaster City Council,30UH,Amazon,Regeneration and Planning,Marketing,09/10/2017,40593,80.98
Lancaster City Council,30UH,Amazon,Health & Housing,Printing & Stationery,02/10/2017,bpc005702,100.00
Lancaster City Council,30UH,Amazon,Resources,Contracted Services,01/12/2017,jpc001162,124.98
Lancaster City Council,30UH,Amazon,Health & Housing,Equipment and Tools - General,28/10/2017,bpc005729,130.83
Lancaster City Council,30UH,Amazon,Health & Housing,Printing & Stationery,30/10/2017,bpc005765,144.75
Lancaster City Council,30UH,Amazon,Regeneration and Planning,Photographic Equipment,06/11/2017,npc002163,145.83
Lancaster City Council,30UH,Amazon,Health & Housing,Printing & Stationery,31/10/2017,bpc005779,156.95
Lancaster City Council,30UH,Amazon,Health & Housing,Printing & Stationery,30/10/2017,bpc005764,161.87
Lancaster City Council,30UH,Amazon,Health & Housing,Equipment and Tools - General,30/10/2017,bpc005769,177.47
Lancaster City Council,30UH,Amazon,Health & Housing,Contracted Services,31/10/2017,hpc000608,260.83
Lancaster City Council,30UH,Amazon,Resources,Computer Equipment,03/11/2017,jpc001135,300.27
Lancaster City Council,30UH,Amazon,Health & Housing,Printing & Stationery,06/11/2017,bpc005791,383.33
Lancaster City Council,30UH,Amazon,Resources,Capital Payments To Contractors,03/10/2017,jpc001118,729.12
Lancaster City Council,30UH,Amazon,Resources,Computer Equipment,03/11/2017,jpc001146,1499.44
Lancaster City Council,30UH,angloaccess.co.uk,Health & Housing,Equipment and Tools - General,30/10/2017,bpc005771,148.50
Lancaster City Council,30UH,APCOA Parking,Health & Housing,Service Training Budget,15/11/2017,spc002521,2.92
Lancaster City Council,30UH,APPLIANCE DIRECT,Health & Housing,Equipment Funded by Reserves,31/10/2017,hpc000604,162.49
Lancaster City Council,30UH,APPLIANCE DIRECT,Health & Housing,Equipment Funded by Reserves,05/12/2017,hpc000638,162.49
Lancaster City Council,30UH,APPLIANCE DIRECT,Health & Housing,Equipment Funded by Reserves,05/12/2017,hpc000642,179.16
Lancaster City Council,30UH,APPLIANCE DIRECT,Environmental Services,Contracted Services,27/10/2017,40805,449.98
Lancaster City Council,30UH,APPLIANCE DIRECT,Health & Housing,Miscellaneous Expenditure,05/12/2017,hpc000645,824.96
Lancaster City Council,30UH,Arco,Regeneration and Planning,Equipment and Tools - General,04/10/2017,npc002097,95.40
Lancaster City Council,30UH,Argos,Health & Housing,Services - General,13/12/2017,hpc000649,4.99
Lancaster City Council,30UH,Argos,Governance,Catering Provisions,11/10/2017,dpc000576,6.66
Lancaster City Council,30UH,Argos,Resources,Equipment and Tools - General,24/10/2017,ppc001088,9.16
Lancaster City Council,30UH,Argos,Health & Housing,Equipment and Tools - General,17/10/2017,spc002467,14.99
Lancaster City Council,30UH,Argos,Health & Housing,Equipment and Tools - General,12/12/2017,spc002601,20.82
Lancaster City Council,30UH,Argos,Regeneration and Planning,Office Equipment,11/12/2017,npc002234,21.98
Lancaster City Council,30UH,Argos,Resources,Equipment and Tools - General,03/11/2017,jpc001125,39.98
Lancaster City Council,30UH,Argos,Resources,Equipment and Tools - General,27/11/2017,ppc001124,43.32
Lancaster City Council,30UH,Argos,Health & Housing,Homelessness Priority Need Order,11/12/2017,spc002590,292.85
Lancaster City Council,30UH,Argos,Health & Housing,Homelessness Priority Need Order,30/10/2017,spc002487,360.61
Lancaster City Council,30UH,Arriva,Regeneration and Planning,Use Of Public Tpt - Officers,06/11/2017,npc002150,-306.50
Lancaster City Council,30UH,Arriva,Regeneration and Planning,Use Of Public Tpt - Officers,03/10/2017,npc002093,67.00
Lancaster City Council,30UH,Arriva,Regeneration and Planning,Use Of Public Tpt - Officers,24/10/2017,npc002127,97.60
Lancaster City Council,30UH,Arriva,Regeneration and Planning,Use Of Public Tpt - Officers,30/10/2017,npc002139,316.50
Lancaster City Council,30UH,ASA,Health & Housing,Services - General,18/10/2017,bpc005718,520.50
Lancaster City Council,30UH,Asda,Health & Housing,Materials - General,14/11/2017,bpc005815,0.05
Lancaster City Council,30UH,Asda,Governance,Civic Receptions & Mayoral Functions,30/10/2017,dpc000588,1.00
Lancaster City Council,30UH,Asda,Health & Housing,Materials For Resale,07/11/2017,bpc005799,5.43
Lancaster City Council,30UH,Asda,Health & Housing,Equipment and Tools - General,29/12/2017,bpc005915,5.83
Lancaster City Council,30UH,Asda,Health & Housing,Equipment and Tools - General,23/10/2017,bpc005726,5.83
Lancaster City Council,30UH,Asda,Health & Housing,Equipment and Tools - General,08/11/2017,bpc005803,6.25
Lancaster City Council,30UH,Asda,Health & Housing,Equipment and Tools - General,07/11/2017,bpc005797,6.50
Lancaster City Council,30UH,Asda,Health & Housing,Equipment and Tools - General,30/11/2017,bpc005849,6.67
Lancaster City Council,30UH,Asda,Health & Housing,Equipment and Tools - General,29/12/2017,bpc005912,7.54
Lancaster City Council,30UH,Asda,Health & Housing,Materials For Resale,21/12/2017,bpc005899,7.60
Lancaster City Council,30UH,Asda,Health & Housing,Materials For Resale,29/10/2017,bpc005734,7.90
Lancaster City Council,30UH,Asda,Health & Housing,Materials - General,23/10/2017,bpc005721,7.92
Lancaster City Council,30UH,Asda,Health & Housing,Materials For Resale,01/10/2017,bpc005694,9.44
Lancaster City Council,30UH,Asda,Health & Housing,Materials For Resale,28/11/2017,bpc005837,9.85
Lancaster City Council,30UH,Asda,Health & Housing,Equipment and Tools - General,30/11/2017,bpc005848,10.00
Lancaster City Council,30UH,Asda,Health & Housing,Materials For Resale,11/12/2017,bpc005879,11.37
Lancaster City Council,30UH,Asda,Health & Housing,Materials For Resale,15/11/2017,bpc005818,11.87
Lancaster City Council,30UH,Asda,Health & Housing,Equipment and Tools - General,29/10/2017,bpc005745,12.50
Lancaster City Council,30UH,Asda,Regeneration and Planning,Marketing,07/11/2017,41107,13.00
Lancaster City Council,30UH,Asda,Health & Housing,R & M - Buildings (Within Service),22/12/2017,bpc005900,14.17
Lancaster City Council,30UH,Asda,Health & Housing,Equipment and Tools - General,21/11/2017,spc002536,14.37
Lancaster City Council,30UH,Asda,Health & Housing,Materials For Resale,24/12/2017,bpc005904,15.90
Lancaster City Council,30UH,Asda,Health & Housing,Materials For Resale,24/12/2017,bpc005903,20.00
Lancaster City Council,30UH,Asda,Health & Housing,Materials For Resale,07/11/2017,bpc005798,20.05
Lancaster City Council,30UH,Asda,Health & Housing,Materials For Resale,30/10/2017,bpc005757,21.29
Lancaster City Council,30UH,Asda,Health & Housing,Materials For Resale,06/12/2017,bpc005875,23.70
Lancaster City Council,30UH,Asda,Health & Housing,Equipment and Tools - General,22/11/2017,bpc005822,24.65
Lancaster City Council,30UH,Asda,Health & Housing,Equipment and Tools - General,25/10/2017,spc002478,25.50
Lancaster City Council,30UH,Asda,Health & Housing,Materials For Resale,15/10/2017,bpc005717,26.77
Lancaster City Council,30UH,Asda,Health & Housing,Tenants Participation,01/11/2017,hpc000618,29.80
Lancaster City Council,30UH,Asda,Health & Housing,Equipment and Tools - General,29/10/2017,bpc005746,31.71
Lancaster City Council,30UH,Asda,Governance,Civic Receptions & Mayoral Functions,19/12/2017,dpc000603,32.00
Lancaster City Council,30UH,Asda,Health & Housing,Equipment and Tools - General,29/12/2017,bpc005920,33.32
Lancaster City Council,30UH,Asda,Health & Housing,Equipment and Tools - General,13/12/2017,spc002604,38.87
Lancaster City Council,30UH,Asda,Health & Housing,Equipment and Tools - General,29/12/2017,bpc005913,41.50
Lancaster City Council,30UH,Asda,Health & Housing,Materials For Resale,11/11/2017,bpc005813,43.99
Lancaster City Council,30UH,Asda,Health & Housing,Materials For Resale,28/11/2017,bpc005839,50.31
Lancaster City Council,30UH,Asda,Health & Housing,Equipment and Tools - General,20/12/2017,spc002624,50.48
Lancaster City Council,30UH,Asda,Health & Housing,Materials For Resale,24/12/2017,bpc005905,60.16
Lancaster City Council,30UH,Asda,Health & Housing,Equipment and Tools - General,13/12/2017,spc002605,63.54
Lancaster City Council,30UH,Asda,Health & Housing,Materials For Resale,07/11/2017,bpc005800,68.20
Lancaster City Council,30UH,Asda,Health & Housing,Clothing & Uniforms,11/12/2017,spc002597,68.70
Lancaster City Council,30UH,Asda,Health & Housing,Materials For Resale,15/10/2017,bpc005716,71.86
Lancaster City Council,30UH,Asda,Health & Housing,Materials For Resale,29/10/2017,bpc005735,77.89
Lancaster City Council,30UH,Asda,Health & Housing,Materials For Resale,31/10/2017,bpc005781,86.00
Lancaster City Council,30UH,Asda,Health & Housing,Materials For Resale,11/12/2017,bpc005878,86.56
Lancaster City Council,30UH,Asda,Health & Housing,Materials For Resale,28/11/2017,bpc005838,88.00
Lancaster City Council,30UH,Asda,Health & Housing,Tenants Participation,31/10/2017,hpc000611,95.22
Lancaster City Council,30UH,Asda,Health & Housing,Materials For Resale,28/11/2017,bpc005836,97.50
Lancaster City Council,30UH,Asda,Regeneration and Planning,Bar Supplies,13/12/2017,npc002248,128.45
Lancaster City Council,30UH,Asda,Health & Housing,Equipment and Tools - General,06/10/2017,spc002447,176.87
Lancaster City Council,30UH,Ashton Hall Garden Centre,Environmental Services,Equipment and Tools - General,27/11/2017,41371,52.47
Lancaster City Council,30UH,Ashwood Gifts Ltd,Environmental Services,Materials For Resale,27/11/2017,41377,736.33
Lancaster City Council,30UH,Aston Signs,Resources,R & M - Buildings,19/12/2017,ppc001161,26.80
Lancaster City Council,30UH,Atkinsons,Regeneration and Planning,Exhibitions & Events - Expenses,21/10/2017,npc002122,39.60
Lancaster City Council,30UH,Avanti Hygiene,Regeneration and Planning,Other Cleaning,04/12/2017,npc002228,25.46
Lancaster City Council,30UH,AVG,Resources,Infrastructure - Update & Maintenance,06/10/2017,jpc001124,47.49
Lancaster City Council,30UH,B & M,Regeneration and Planning,Printing & Stationery,28/11/2017,41402,3.33
Lancaster City Council,30UH,B & M,Environmental Services,Prizes,07/11/2017,41123,6.74
Lancaster City Council,30UH,B & M,Regeneration and Planning,Exhibitions,07/11/2017,41086,12.98
Lancaster City Council,30UH,B & M,Regeneration and Planning,Printing & Stationery,28/11/2017,41401,13.32
Lancaster City Council,30UH,B & M,Regeneration and Planning,Equipment and Tools - General,02/11/2017,npc002143,23.31
Lancaster City Council,30UH,B & M,Regeneration and Planning,Exhibitions,09/10/2017,40578,26.88
Lancaster City Council,30UH,B & Q,Resources,Equipment and Tools - General,28/12/2017,ppc001169,7.02
Lancaster City Council,30UH,B & Q,Health & Housing,Tenants Participation,16/10/2017,hpc000596,13.33
Lancaster City Council,30UH,B & Q,Environmental Services,R & M - Buildings,20/12/2017,41745,15.00
Lancaster City Council,30UH,B & Q,Resources,Equipment and Tools - General,27/11/2017,ppc001123,101.80
Lancaster City Council,30UH,BAILEY SPORTS THEREPY,Health & Housing,Equipment Funded by Reserves,01/11/2017,hpc000614,18.33
Lancaster City Council,30UH,Baker Ross,Health & Housing,Printing & Stationery,24/11/2017,bpc005831,60.87
Lancaster City Council,30UH,Baker Ross,Health & Housing,Equipment and Tools - General,30/10/2017,spc002491,74.47
Lancaster City Council,30UH,BALL COLEGRAVE,Environmental Services,Materials - General,27/10/2017,40807,4.58
Lancaster City Council,30UH,BALL COLEGRAVE,Environmental Services,Materials - General,27/10/2017,40808,5.00
Lancaster City Council,30UH,Ballicom,Resources,Capital Payments To Contractors,03/10/2017,jpc001113,11.07
Lancaster City Council,30UH,Bannister Hall Nursery,Environmental Services,Materials - General,28/12/2017,41800,153.00
Lancaster City Council,30UH,Bannister Hall Nursery,Environmental Services,Materials - General,17/10/2017,40701,284.00
Lancaster City Council,30UH,Bannister Hall Nursery,Environmental Services,Materials - General,27/11/2017,41364,762.17
Lancaster City Council,30UH,Bannister Hall Nursery,Environmental Services,Forestry Commission Works,27/11/2017,41361,1575.83
Lancaster City Council,30UH,Bannister Hall Nursery,Environmental Services,Grounds Maintenance - Other,27/11/2017,41363,2500.00
Lancaster City Council,30UH,Barcham Trees PLC,Environmental Services,Materials - General,14/11/2017,41216,210.00
Lancaster City Council,30UH,Barrabes Ski / PayPal,Health & Housing,Equipment and Tools - General,02/10/2017,bpc005709,34.99
Lancaster City Council,30UH,BASIS,Health & Housing,Equipment and Tools - General,15/11/2017,spc002523,100.00
Lancaster City Council,30UH,batteryforce,Health & Housing,Equipment and Tools - General,22/11/2017,bpc005823,41.10
Lancaster City Council,30UH,Bay Vets Ltd,Environmental Services,Services - Vets,15/11/2017,41237,76.22
Lancaster City Council,30UH,Bay Vets Ltd,Environmental Services,Services - Vets,22/12/2017,41795,362.27
Lancaster City Council,30UH,Bay Wood Services,Health & Housing,Materials (Minor Adaptations),12/12/2017,spc002603,25.00
Lancaster City Council,30UH,BBP Legal,Governance,Services - Legal Costs,31/10/2017,lpc000579,3.90
Lancaster City Council,30UH,BBP Legal,Governance,Services - Legal Costs,31/10/2017,lpc000560,250.00
Lancaster City Council,30UH,BBP Legal,Governance,Services - Legal Costs,29/12/2017,lpc000611,300.00
Lancaster City Council,30UH,BBP Legal,Governance,Services - Legal Costs,29/12/2017,lpc000615,307.80
Lancaster City Council,30UH,BEDFORDS SHELVING LTD,Environmental Services,Hospitality,28/11/2017,41403,69.17
Lancaster City Council,30UH,Beeches,Regeneration and Planning,Materials For Resale,05/12/2017,41723,159.82
Lancaster City Council,30UH,Bergfreunde/PayPal,Health & Housing,Equipment and Tools - General,30/10/2017,bpc005760,15.29
Lancaster City Council,30UH,Best Western Lothersdale Hotel,Regeneration and Planning,Exhibitions & Events - Expenses,11/12/2017,npc002236,147.50
Lancaster City Council,30UH,Best Western Lothersdale Hotel,Regeneration and Planning,Exhibitions & Events - Expenses,11/12/2017,npc002235,195.00
Lancaster City Council,30UH,BIFM,Resources,Professional Fees Etc,03/10/2017,ppc001059,197.00
Lancaster City Council,30UH,Billetto,Health & Housing,Exhibitions,01/12/2017,bpc005860,152.65
Lancaster City Council,30UH,biopac,Regeneration and Planning,Catering Provisions,07/11/2017,npc002171,46.05
Lancaster City Council,30UH,Bisley Direct,Resources,Equipment and Tools - General,02/10/2017,ppc001057,49.90
Lancaster City Council,30UH,Blackpool FC,Environmental Services,Entertainment Fees,14/12/2017,41697,12.08
Lancaster City Council,30UH,blanc occasions,Environmental Services,Equipment and Tools - General,09/12/2017,41616,59.00
Lancaster City Council,30UH,BLT Direct,Resources,R & M - Buildings,19/12/2017,ppc001163,17.01
Lancaster City Council,30UH,BLT Direct,Resources,R & M - Buildings,03/11/2017,ppc001101,47.40
Lancaster City Council,30UH,BLT Direct,Resources,R & M - Buildings,19/12/2017,ppc001168,47.80
Lancaster City Council,30UH,BLT Direct,Resources,R & M - Buildings,19/12/2017,ppc001164,99.60
Lancaster City Council,30UH,BLT Direct,Resources,R & M - Buildings,30/10/2017,ppc001092,159.40
Lancaster City Council,30UH,BLT Direct,Resources,R & M - Buildings,19/12/2017,ppc001162,270.39
Lancaster City Council,30UH,BLT Direct,Resources,R & M - Buildings,19/12/2017,ppc001167,833.75
Lancaster City Council,30UH,Bluetree Design & Print,Regeneration and Planning,Marketing,27/10/2017,40813,83.17
Lancaster City Council,30UH,Bluetree Design & Print,Health & Housing,Marketing,29/10/2017,bpc005744,146.50
Lancaster City Council,30UH,Boards Direct,Health & Housing,R & M - Environmental Works,09/11/2017,hpc000624,136.90
Lancaster City Council,30UH,Bolton At Home Ltd,Regeneration and Planning,Subscriptions,04/10/2017,npc002096,500.00
Lancaster City Council,30UH,Booker,Regeneration and Planning,Exhibitions & Events - Expenses,21/10/2017,npc002119,16.63
Lancaster City Council,30UH,Booker,Health & Housing,Equipment and Tools - General,24/12/2017,bpc005901,24.90
Lancaster City Council,30UH,Booker,Health & Housing,Materials For Resale,01/11/2017,bpc005788,27.16
Lancaster City Council,30UH,Booker,Health & Housing,Materials - General,29/12/2017,bpc005909,33.99
Lancaster City Council,30UH,Booker,Health & Housing,Equipment and Tools - General,24/12/2017,bpc005902,44.68
Lancaster City Council,30UH,Booker,Regeneration and Planning,Bar Supplies,21/10/2017,npc002120,97.86
Lancaster City Council,30UH,Booker,Health & Housing,Materials For Resale,28/11/2017,bpc005840,113.33
Lancaster City Council,30UH,Booker,Environmental Services,Materials For Resale,27/11/2017,41368,120.42
Lancaster City Council,30UH,Booker,Regeneration and Planning,Bar Supplies,20/12/2017,npc002259,126.70
Lancaster City Council,30UH,Booker,Environmental Services,Materials For Resale,28/12/2017,41819,130.43
Lancaster City Council,30UH,Booker,Regeneration and Planning,Bar Supplies,01/10/2017,npc002075,147.49
Lancaster City Council,30UH,Booker,Regeneration and Planning,Bar Supplies,21/11/2017,npc002194,150.19
Lancaster City Council,30UH,Booker,Health & Housing,Materials For Resale,09/10/2017,bpc005712,166.69
Lancaster City Council,30UH,Booker,Environmental Services,Materials For Resale,27/11/2017,41369,170.01
Lancaster City Council,30UH,Booker,Health & Housing,Materials For Resale,01/11/2017,bpc005787,196.87
Lancaster City Council,30UH,Booker,Environmental Services,Materials For Resale,15/11/2017,41234,228.16
Lancaster City Council,30UH,Booker,Regeneration and Planning,Bar Supplies,01/10/2017,npc002074,229.48
Lancaster City Council,30UH,Booker,Environmental Services,Materials For Resale,22/12/2017,41777,249.09
Lancaster City Council,30UH,Booker,Environmental Services,Materials For Resale,24/10/2017,40770,258.94
Lancaster City Council,30UH,Booker,Environmental Services,Materials For Resale,28/12/2017,41818,285.16
Lancaster City Council,30UH,Booker,Health & Housing,Materials For Resale,11/12/2017,bpc005877,354.03
Lancaster City Council,30UH,Booker,Environmental Services,Materials For Resale,28/12/2017,41817,389.95
Lancaster City Council,30UH,Booker,Environmental Services,Materials For Resale,15/11/2017,41235,392.85
Lancaster City Council,30UH,Booker,Environmental Services,Materials For Resale,24/10/2017,40771,606.95
Lancaster City Council,30UH,Booker,Health & Housing,Materials For Resale,01/11/2017,bpc005789,653.63
Lancaster City Council,30UH,Booking.com,Health & Housing,Miscellaneous Expenditure,27/11/2017,hpc000627,125.47
Lancaster City Council,30UH,Booking.com,Health & Housing,Miscellaneous Expenditure,27/11/2017,hpc000634,132.82
Lancaster City Council,30UH,Booking.com,Health & Housing,Miscellaneous Expenditure,27/11/2017,hpc000629,150.00
Lancaster City Council,30UH,Booking.com,Health & Housing,Miscellaneous Expenditure,29/11/2017,hpc000636,162.50
Lancaster City Council,30UH,Booking.com,Health & Housing,Miscellaneous Expenditure,27/11/2017,hpc000632,183.33
Lancaster City Council,30UH,Booths,Resources,Celebrating Success Awards,30/10/2017,ppc001091,-82.50
Lancaster City Council,30UH,Booths,Regeneration and Planning,Other Cleaning,22/11/2017,npc002202,6.00
Lancaster City Council,30UH,Booths,Regeneration and Planning,Printing & Stationery,07/11/2017,npc002168,6.66
Lancaster City Council,30UH,Booths,Regeneration and Planning,Other Cleaning,07/11/2017,npc002168,18.71
Lancaster City Council,30UH,Booths,Resources,Celebrating Success Awards,30/10/2017,ppc001090,91.67
Lancaster City Council,30UH,Boots,Governance,Catering Provisions,11/10/2017,dpc000578,1.00
Lancaster City Council,30UH,Border Aggregates,Environmental Services,R & M - General,28/12/2017,41813,128.42
Lancaster City Council,30UH,Bowling Green S STn,Environmental Services,Fuel Oil,15/11/2017,41229,44.29
Lancaster City Council,30UH,BPCA,Health & Housing,Equipment and Tools - General,23/10/2017,spc002475,-79.20
Lancaster City Council,30UH,BPCA,Health & Housing,Equipment and Tools - General,04/12/2017,spc002579,314.35
Lancaster City Council,30UH,British Gas,Health & Housing,Syrian Ressetlement Programme,29/11/2017,spc002566,24.19
Lancaster City Council,30UH,British Gas,Health & Housing,Syrian Ressetlement Programme,29/11/2017,spc002564,38.49
Lancaster City Council,30UH,British Gas,Health & Housing,Contracted Services,21/12/2017,hpc000653,54.56
Lancaster City Council,30UH,British Gas,Health & Housing,Contracted Services,21/12/2017,hpc000652,71.17
Lancaster City Council,30UH,British Gymnastics ,Health & Housing,Equipment and Tools - General,14/11/2017,bpc005814,136.10
Lancaster City Council,30UH,British Hospitality,Health & Housing,Equipment and Tools - General,17/10/2017,spc002470,10.00
Lancaster City Council,30UH,British Rail,Health & Housing,Services - General,29/11/2017,bpc005842,109.00
Lancaster City Council,30UH,British Red cross,Governance,Corporate Training Budget,30/11/2017,lpc000594,646.00
Lancaster City Council,30UH,British Telecommunications plc,Health & Housing,Telephones,06/11/2017,bpc005792,55.89
Lancaster City Council,30UH,broadoak,Health & Housing,Equipment and Tools - General,30/10/2017,bpc005756,13.83
Lancaster City Council,30UH,Broadoak Home & Garden Ltd,Environmental Services,Materials - General,23/10/2017,40737,49.17
Lancaster City Council,30UH,Brown Paper Carrier Co,Regeneration and Planning,Printing & Stationery,05/12/2017,41868,61.45
Lancaster City Council,30UH,BT,Regeneration and Planning,Telephones,22/11/2017,npc002204,40.00
Lancaster City Council,30UH,BT,Resources,Telephones,11/10/2017,ppc001081,55.89
Lancaster City Council,30UH,BT,Resources,Telephones,05/10/2017,ppc001063,56.00
Lancaster City Council,30UH,BT,Resources,Contract Maintenance,11/10/2017,ppc001080,89.10
Lancaster City Council,30UH,BT,Regeneration and Planning,Telephones,23/10/2017,npc002126,103.60
Lancaster City Council,30UH,BT,Regeneration and Planning,Telephones,22/11/2017,npc002203,440.44
Lancaster City Council,30UH,Burnely Borough Council,Regeneration and Planning,Marketing,06/11/2017,npc002152,400.00
Lancaster City Council,30UH,Burnley Borough Council,Regeneration and Planning,Marketing,21/11/2017,npc002196,40.00
Lancaster City Council,30UH,Burnley Borough Council,Regeneration and Planning,Exhibitions & Events,02/10/2017,npc002076,80.00
Lancaster City Council,30UH,Burnley Borough Council,Regeneration and Planning,Marketing,02/10/2017,npc002077,130.60
Lancaster City Council,30UH,Burnley Borough Council,Regeneration and Planning,Marketing,02/10/2017,npc002078,240.00
Lancaster City Council,30UH,Burnley Borough Council,Regeneration and Planning,Marketing,15/12/2017,npc002252,480.00
Lancaster City Council,30UH,Burnley Borough Council,Regeneration and Planning,Marketing,06/11/2017,npc002153,1400.00
Lancaster City Council,30UH,Business Continuity Institute,Health & Housing,Service Training Budget,01/11/2017,spc002507,82.00
Lancaster City Council,30UH,C E F,Regeneration and Planning,Equipment and Tools - General,20/11/2017,npc002190,12.60
Lancaster City Council,30UH,CALLENDER CARAVANS,Regeneration and Planning,Equipment and Tools - General,07/11/2017,npc002167,8.33
Lancaster City Council,30UH,CANFORD,Health & Housing,Equipment and Tools - General,03/11/2017,spc002511,56.00
Lancaster City Council,30UH,Carlisle Glass Limited,Environmental Services,Materials - General,06/11/2017,41056,2.00
Lancaster City Council,30UH,Carlisle Glass Limited,Environmental Services,Equipment and Tools - General,06/11/2017,41059,26.26
Lancaster City Council,30UH,Carlisle Glass Limited,Environmental Services,Equipment and Tools - General,07/11/2017,41110,102.10
Lancaster City Council,30UH,Carlisle Glass Limited,Environmental Services,Clothing & Uniforms,06/11/2017,41058,160.00
Lancaster City Council,30UH,Carnegie,Regeneration and Planning,Materials For Resale,07/11/2017,41063,72.00
Lancaster City Council,30UH,Carpetman,Health & Housing,Homelessness Priority Need Order,23/11/2017,spc002554,1298.00
Lancaster City Council,30UH,Catering Partnership Ltd,Health & Housing,Equipment Operating Leases,02/10/2017,bpc005699,65.00
Lancaster City Council,30UH,Cerberus FTP Server,Resources,Infrastructure - Update & Maintenance,03/11/2017,jpc001126,965.61
Lancaster City Council,30UH,CGB,Regeneration and Planning,Materials For Resale,27/11/2017,41367,63.70
Lancaster City Council,30UH,CGB,Regeneration and Planning,Materials For Resale,17/10/2017,40725,106.32
Lancaster City Council,30UH,Charles Endirect,Environmental Services,Equipment and Tools - General,21/11/2017,41284,25.90
Lancaster City Council,30UH,Chubb Fire and Security Ltd,Environmental Services,Contract Maintenance,28/12/2017,41891,279.06
Lancaster City Council,30UH,Chunn Fire and Security Ltd,Environmental Services,Contract Maintenance,28/12/2017,41804,117.29
Lancaster City Council,30UH,CIEH,Health & Housing,Services - General,08/11/2017,spc002519,-368.00
Lancaster City Council,30UH,CIEH,Health & Housing,Conferences & Seminars,05/10/2017,spc002437,45.00
Lancaster City Council,30UH,CIEH,Health & Housing,Conferences & Seminars,05/10/2017,spc002434,47.84
Lancaster City Council,30UH,CIEH,Health & Housing,Service Training Budget,01/11/2017,spc002506,70.00
Lancaster City Council,30UH,CIEH,Health & Housing,Service Training Budget,21/12/2017,spc002628,578.00
Lancaster City Council,30UH,Cipfa,Resources,Conferences & Seminars,27/11/2017,fpc000271,234.00
Lancaster City Council,30UH,Cipfa,Resources,Service Training Budget,07/12/2017,fpc000273,295.00
Lancaster City Council,30UH,CL:AIRE,Health & Housing,Services - Contaminated Land,22/11/2017,spc002545,105.00
Lancaster City Council,30UH,CL:AIRE,Health & Housing,Service Training Budget,08/12/2017,spc002585,250.75
Lancaster City Council,30UH,Classic engravings,Governance,Celebrating Success Awards,21/12/2017,lpc000601,71.67
Lancaster City Council,30UH,CLOUD NINE,Environmental Services,Long Service Awards,30/11/2017,41466,115.83
Lancaster City Council,30UH,CMACCCTV,Resources,Capital Payments To Contractors,03/10/2017,jpc001111,149.17
Lancaster City Council,30UH,Coles Hardware,Health & Housing,Materials (Minor Adaptations),11/12/2017,spc002586,8.33
Lancaster City Council,30UH,Coles hardware,Health & Housing,Materials (Minor Adaptations),05/10/2017,spc002433,9.17
Lancaster City Council,30UH,Coles hardware,Health & Housing,Materials (Minor Adaptations),20/11/2017,spc002532,13.33
Lancaster City Council,30UH,Coles hardware,Health & Housing,Materials (Minor Adaptations),14/12/2017,spc002608,13.33
Lancaster City Council,30UH,Coles hardware,Health & Housing,Materials (Minor Adaptations),19/12/2017,spc002616,91.67
Lancaster City Council,30UH,Comms Express,Resources,Infrastructure - Update & Maintenance,03/11/2017,jpc001150,68.32
Lancaster City Council,30UH,Comodo,Resources,Infrastructure - Update & Maintenance,29/12/2017,jpc001167,230.85
Lancaster City Council,30UH,Conica Ltd,Environmental Services,Playground Improvements,22/11/2017,41286,2455.75
Lancaster City Council,30UH,Construction Industry Training,Health & Housing,Corporate Safety,05/10/2017,spc002431,355.00
Lancaster City Council,30UH,COOP,Regeneration and Planning,Exhibitions & Events,22/11/2017,npc002201,4.91
Lancaster City Council,30UH,Cooper & Co Sols,Health & Housing,Service Training Budget,04/10/2017,spc002423,195.00
Lancaster City Council,30UH,cornerstone chambers,Governance,Service Training Budget,11/10/2017,lpc000555,-80.00
Lancaster City Council,30UH,Correct Flow Engineering,Health & Housing,Chemicals,08/12/2017,bpc005876,669.25
Lancaster City Council,30UH,Cost Dropper / Euraco Group Li,Environmental Services,Cleaning Materials,14/11/2017,41212,10.66
Lancaster City Council,30UH,Countrystyle Meats Farmshop,Environmental Services,Materials For Resale,24/10/2017,40780,1063.09
Lancaster City Council,30UH,CPC,Regeneration and Planning,Equipment and Tools - General,29/11/2017,npc002217,-16.66
Lancaster City Council,30UH,CPC,Regeneration and Planning,Equipment and Tools - General,29/11/2017,npc002215,33.89
Lancaster City Council,30UH,CPC,Regeneration and Planning,Equipment and Tools - General,29/11/2017,npc002216,289.43
Lancaster City Council,30UH,createsend.com,Regeneration and Planning,Marketing,04/10/2017,npc002101,21.72
Lancaster City Council,30UH,createsend.com,Regeneration and Planning,Marketing,25/10/2017,npc002130,21.75
Lancaster City Council,30UH,createsend.com,Regeneration and Planning,Marketing,20/12/2017,npc002258,21.79
Lancaster City Council,30UH,createsend.com,Regeneration and Planning,Exhibitions & Events,15/12/2017,npc002254,21.84
Lancaster City Council,30UH,Crocs EU,Health & Housing,Clothing & Uniforms,06/10/2017,spc002438,166.62
Lancaster City Council,30UH,Cromwell Tools Limited,Environmental Services,Materials - General,04/12/2017,41529,110.53
Lancaster City Council,30UH,Crucial,Resources,Office Equipment,03/11/2017,jpc001145,77.97
Lancaster City Council,30UH,Cumbria Green Fuels,Regeneration and Planning,Misc. Energy Charges,08/11/2017,npc002178,252.38
Lancaster City Council,30UH,Cumbria Tourism,Regeneration and Planning,Miscellaneous Advertising,25/10/2017,npc002134,215.00
Lancaster City Council,30UH,Cumbrian News,Health & Housing,Marketing & Promotion,04/12/2017,spc002575,15.00
Lancaster City Council,30UH,Currys,Resources,Fixtures & Fittings - General,13/12/2017,ppc001158,49.99
Lancaster City Council,30UH,Currys,Health & Housing,Capital Payments To Contractors,02/10/2017,bpc005708,74.99
Lancaster City Council,30UH,Currys,Health & Housing,Capital Payments To Contractors,02/10/2017,bpc005703,374.96
Lancaster City Council,30UH,Currys PC World,Resources,Equipment and Tools - General,30/10/2017,ppc001089,83.33
Lancaster City Council,30UH,Currys PCWorld,Resources,Equipment and Tools - General,27/11/2017,ppc001127,166.66
Lancaster City Council,30UH,Custom Stamps,Health & Housing,Equipment and Tools - General,29/12/2017,bpc005917,109.27
Lancaster City Council,30UH,DARWIENS CARPETS,Health & Housing,Anti-Social Behaviour,31/10/2017,hpc000606,170.00
Lancaster City Council,30UH,David Willan ,Environmental Services,Materials For Resale,28/12/2017,41811,719.74
Lancaster City Council,30UH,David Willan Quality Fresh Foods,Environmental Services,Materials For Resale,16/11/2017,41246,648.34
Lancaster City Council,30UH,David WillanQuality Fresh Food,Environmental Services,Materials For Resale,24/10/2017,40768,773.16
Lancaster City Council,30UH,Deezer,Health & Housing,Miscellaneous Licences,06/10/2017,bpc005711,9.99
Lancaster City Council,30UH,Deezer,Health & Housing,Miscellaneous Licences,08/11/2017,bpc005805,9.99
Lancaster City Council,30UH,Deezer,Health & Housing,Miscellaneous Licences,29/11/2017,bpc005841,9.99
Lancaster City Council,30UH,Deezer,Health & Housing,Miscellaneous Licences,29/12/2017,bpc005908,9.99
Lancaster City Council,30UH,Dennis Barnfield Ltd,Environmental Services,Equipment and Tools - General,28/12/2017,41799,55.50
Lancaster City Council,30UH,Dennis Barnfield Ltd,Environmental Services,Materials - General,22/11/2017,41285,146.27
Lancaster City Council,30UH,Dennis Barnfield Ltd,Environmental Services,Equipment and Tools - General,24/10/2017,40782,214.03
Lancaster City Council,30UH,Dennis Barnfield Ltd,Environmental Services,Materials - General,30/11/2017,41460,228.89
Lancaster City Council,30UH,Deposit Photos,Regeneration and Planning,Photographic Materials,12/12/2017,npc002243,224.30
Lancaster City Council,30UH,Digital 2000,Environmental Services,Printing & Stationery,29/11/2017,41423,346.40
Lancaster City Council,30UH,Disclosure Scotland,Governance,C. R. B. Costs,29/12/2017,lpc000608,25.00
Lancaster City Council,30UH,Disclosure Scotland,Governance,C. R. B. Costs,29/12/2017,lpc000607,50.00
Lancaster City Council,30UH,Discount Cleaning Supplies,Environmental Services,Cleaning Materials,07/11/2017,41126,20.82
Lancaster City Council,30UH,Display Development Ltd,Regeneration and Planning,Office Equipment,07/11/2017,41080,125.95
Lancaster City Council,30UH,Dods Group PLC,Regeneration and Planning,Service Training Budget,25/10/2017,npc002133,208.25
Lancaster City Council,30UH,Douglas Clift,Governance,Services - Legal Costs,31/10/2017,lpc000578,32.40
Lancaster City Council,30UH,Douglas Clift,Governance,Services - Legal Costs,31/10/2017,lpc000562,300.00
Lancaster City Council,30UH,Douglas Clift,Governance,Services - Legal Costs,31/10/2017,lpc000563,300.00
Lancaster City Council,30UH,Douglas Clift,Governance,Services - Legal Costs,31/10/2017,lpc000564,300.00
Lancaster City Council,30UH,DPD,Resources,Office Equipment,03/11/2017,jpc001127,15.49
Lancaster City Council,30UH,Dunelm,Health & Housing,Equipment and Tools - General,06/10/2017,spc002448,9.15
Lancaster City Council,30UH,Dunelm,Health & Housing,Contracted Services,07/11/2017,hpc000621,85.00
Lancaster City Council,30UH,DW Sports,Health & Housing,Clothing & Uniforms,29/12/2017,bpc005910,176.28
Lancaster City Council,30UH,DW Sports,Health & Housing,Clothing & Uniforms,29/12/2017,bpc005907,360.17
Lancaster City Council,30UH,Dyno Start,Health & Housing,Equipment and Tools - General,30/11/2017,bpc005845,155.00
Lancaster City Council,30UH,dyson.com/PayPal,Health & Housing,Cleaning Materials,30/10/2017,bpc005759,316.65
Lancaster City Council,30UH,E Careers,Governance,Performance Improvement Support,31/10/2017,lpc000577,155.00
Lancaster City Council,30UH,East Riding Horticulture Ltd,Environmental Services,Equipment and Tools - General,22/12/2017,41794,60.00
Lancaster City Council,30UH,eco tableware,Regeneration and Planning,Management Plan Projects,20/12/2017,npc002256,9.63
Lancaster City Council,30UH,ecotricity,Regeneration and Planning,Electricity,12/12/2017,npc002238,34.44
Lancaster City Council,30UH,ecotricity,Regeneration and Planning,Electricity,23/10/2017,npc002125,37.32
Lancaster City Council,30UH,ecotricity,Regeneration and Planning,Electricity,22/11/2017,npc002199,38.56
Lancaster City Council,30UH,Edible Insects,Health & Housing,Marketing & Promotion,09/10/2017,spc002454,86.94
Lancaster City Council,30UH,EEF Seminar,Health & Housing,Corporate Safety,02/11/2017,spc002508,100.00
Lancaster City Council,30UH,eemore/PayPal,Health & Housing,Equipment and Tools - General,02/10/2017,bpc005695,196.81
Lancaster City Council,30UH,ELC Plastics,Regeneration and Planning,Marketing,07/11/2017,41101,36.50
Lancaster City Council,30UH,Ellisons-PayPal,Health & Housing,Equipment and Tools - General,30/10/2017,bpc005772,40.95
Lancaster City Council,30UH,EMAP LTD-SUBSCRIPTIONS,Management Team,P Card Dispute Code,31/10/2017,54486,249.00
Lancaster City Council,30UH,Endirect,Regeneration and Planning,Capital Payments To Contractors,06/11/2017,npc002151,31.80
Lancaster City Council,30UH,Environment- analyst,Health & Housing,Equipment and Tools - General,10/10/2017,spc002462,253.00
Lancaster City Council,30UH,Euroffice ,Resources,Corporate Safety,18/12/2017,rpc000113,115.17
Lancaster City Council,30UH,Everedge,Environmental Services,R & M - General,28/12/2017,41802,120.25
Lancaster City Council,30UH,Eversheds,Governance,Service Training Budget,31/10/2017,lpc000576,224.10
Lancaster City Council,30UH,Exercise Anywhere,Health & Housing,Service Training Budget,29/11/2017,bpc005843,208.33
Lancaster City Council,30UH,Expedia.co.uk,Health & Housing,Use Of Public Tpt - Officers,13/12/2017,bpc005885,-63.34
Lancaster City Council,30UH,Expedia.co.uk,Health & Housing,Use Of Public Tpt - Officers,13/12/2017,bpc005886,-63.34
Lancaster City Council,30UH,Expedia.co.uk,Health & Housing,Use Of Public Tpt - Officers,13/12/2017,bpc005887,-63.34
Lancaster City Council,30UH,Expedia.co.uk,Health & Housing,Use Of Public Tpt - Officers,13/12/2017,bpc005888,-63.34
Lancaster City Council,30UH,Expedia.co.uk,Health & Housing,Use Of Public Tpt - Officers,24/11/2017,bpc005824,304.00
Lancaster City Council,30UH,F R Jones / Pay Pal,Health & Housing,Equipment and Tools - General,02/10/2017,bpc005707,510.00
Lancaster City Council,30UH,F R Jones and Son,Environmental Services,Equipment and Tools - General,02/11/2017,40984,2808.77
Lancaster City Council,30UH,F R Jones and Son,Environmental Services,Clothing & Uniforms,02/11/2017,40984,3160.24
Lancaster City Council,30UH,Facebook,Regeneration and Planning,Miscellaneous Advertising,06/11/2017,npc002154,0.10
Lancaster City Council,30UH,Facebook,Regeneration and Planning,Miscellaneous Advertising,03/10/2017,npc002080,1.07
Lancaster City Council,30UH,Facebook,Regeneration and Planning,Miscellaneous Advertising,03/10/2017,npc002087,2.37
Lancaster City Council,30UH,Facebook,Regeneration and Planning,Miscellaneous Advertising,03/10/2017,npc002091,5.24
Lancaster City Council,30UH,Facebook,Regeneration and Planning,Miscellaneous Advertising,03/10/2017,npc002081,8.03
Lancaster City Council,30UH,Facebook,Health & Housing,Marketing,29/12/2017,bpc005922,10.89
Lancaster City Council,30UH,Facebook,Regeneration and Planning,Miscellaneous Advertising,09/10/2017,40567,12.58
Lancaster City Council,30UH,Facebook,Health & Housing,Marketing,30/11/2017,bpc005857,18.87
Lancaster City Council,30UH,Facebook,Regeneration and Planning,Miscellaneous Advertising,07/11/2017,41117,22.76
Lancaster City Council,30UH,Facebook,Regeneration and Planning,Miscellaneous Advertising,03/10/2017,npc002088,22.80
Lancaster City Council,30UH,Facebook,Regeneration and Planning,Miscellaneous Advertising,07/11/2017,41103,25.78
Lancaster City Council,30UH,Facebook,Health & Housing,Marketing,29/10/2017,bpc005755,30.02
Lancaster City Council,30UH,Facebook,Regeneration and Planning,Miscellaneous Advertising,29/12/2017,41836,37.02
Lancaster City Council,30UH,Facebook,Regeneration and Planning,Miscellaneous Advertising,09/10/2017,40589,39.81
Lancaster City Council,30UH,Facebook,Regeneration and Planning,Miscellaneous Advertising,03/10/2017,npc002085,40.70
Lancaster City Council,30UH,Facebook,Regeneration and Planning,Miscellaneous Advertising,03/10/2017,npc002090,44.67
Lancaster City Council,30UH,Facebook,Regeneration and Planning,Miscellaneous Advertising,30/11/2017,npc002221,44.76
Lancaster City Council,30UH,Facebook,Regeneration and Planning,Miscellaneous Advertising,09/10/2017,40582,50.19
Lancaster City Council,30UH,Facebook,Regeneration and Planning,Miscellaneous Advertising,30/11/2017,npc002222,61.86
Lancaster City Council,30UH,Facebook,Regeneration and Planning,Miscellaneous Advertising,03/10/2017,npc002082,97.27
Lancaster City Council,30UH,Facebook,Regeneration and Planning,Miscellaneous Advertising,07/11/2017,41116,106.16
Lancaster City Council,30UH,Facebook,Regeneration and Planning,Miscellaneous Advertising,03/10/2017,npc002084,111.49
Lancaster City Council,30UH,Facebook,Regeneration and Planning,Miscellaneous Advertising,30/11/2017,npc002223,131.51
Lancaster City Council,30UH,Facebook,Regeneration and Planning,Miscellaneous Advertising,29/12/2017,41837,180.80
Lancaster City Council,30UH,Facebook,Regeneration and Planning,Miscellaneous Advertising,03/10/2017,npc002083,200.01
Lancaster City Council,30UH,Facebook,Regeneration and Planning,Miscellaneous Advertising,09/10/2017,40563,200.04
Lancaster City Council,30UH,Facebook,Regeneration and Planning,Miscellaneous Advertising,09/10/2017,40588,205.70
Lancaster City Council,30UH,Facebook,Regeneration and Planning,Miscellaneous Advertising,07/11/2017,41104,224.28
Lancaster City Council,30UH,Facebook,Regeneration and Planning,Miscellaneous Advertising,30/11/2017,npc002224,271.53
Lancaster City Council,30UH,Fast Keys,Resources,Equipment and Tools - General,05/12/2017,ppc001132,22.68
Lancaster City Council,30UH,Fast Keys,Resources,Equipment and Tools - General,02/10/2017,ppc001056,49.93
Lancaster City Council,30UH,Fast Keys,Resources,Printing & Stationery,05/12/2017,ppc001132,107.73
Lancaster City Council,30UH,Fiddlers Lancashire Crisps,Environmental Services,Materials For Resale,22/12/2017,41779,48.25
Lancaster City Council,30UH,Fiddlers Lancashire crisps,Environmental Services,Materials For Resale,24/10/2017,40769,106.15
Lancaster City Council,30UH,Fiddlers Lancashire Crisps,Environmental Services,Materials For Resale,16/11/2017,41241,154.40
Lancaster City Council,30UH,Fire Label Merchandise,Regeneration and Planning,Marketing,07/11/2017,41083,171.00
Lancaster City Council,30UH,First Aid for less,Health & Housing,Equipment and Tools - General,04/12/2017,bpc005863,326.70
Lancaster City Council,30UH,Fleet (Line Markers) Ltd,Environmental Services,Materials - General,22/11/2017,41526,683.70
Lancaster City Council,30UH,Food safe direct ltd,Health & Housing,Equipment and Tools - General,05/10/2017,spc002436,46.54
Lancaster City Council,30UH,Food Safety Direct,Health & Housing,Equipment and Tools - General,06/10/2017,spc002443,19.90
Lancaster City Council,30UH,Forge Leisure (UK) Ltd,Health & Housing,Equipment and Tools - General,15/12/2017,bpc005894,239.17
Lancaster City Council,30UH,Fosters,Regeneration and Planning,Materials For Resale,17/10/2017,40708,195.45
Lancaster City Council,30UH,FR Jones and son,Environmental Services,Equipment and Tools - General,28/12/2017,41812,57.25
Lancaster City Council,30UH,Funime,Health & Housing,Equipment and Tools - General,30/11/2017,bpc005854,26.98
Lancaster City Council,30UH,G&E M Milnthorpe,Regeneration and Planning,Petrol & Derv,28/11/2017,npc002213,20.15
Lancaster City Council,30UH,Gael Force Marine,Regeneration and Planning,R & M - Sea & River / Promenade,11/10/2017,npc002112,1184.62
Lancaster City Council,30UH,GANZ EINFACH GMBH,Health & Housing,Office Equipment,05/12/2017,hpc000640,16.65
Lancaster City Council,30UH,GANZ EINFFACH GMBH,Health & Housing,Office Equipment,05/12/2017,hpc000641,16.65
Lancaster City Council,30UH,gazeboshop,Regeneration and Planning,Equipment and Tools - General,07/11/2017,npc002169,44.00
Lancaster City Council,30UH,GB Sport & Leisure UK Ltd,Environmental Services,Playground Improvements,22/11/2017,41306,180.00
Lancaster City Council,30UH,GB Sport & Leisure UK Ltd,Environmental Services,Playground Improvements,22/11/2017,41297,279.93
Lancaster City Council,30UH,GB Sport & Leisure UK Ltd,Environmental Services,Materials - General,18/12/2017,41721,312.48
Lancaster City Council,30UH,GB Sport & Leisure UK Ltd,Environmental Services,Materials - General,16/11/2017,41262,1362.50
Lancaster City Council,30UH,George Speight and Sons Ltd,Environmental Services,Materials - General,22/12/2017,41792,64.67
Lancaster City Council,30UH,George Speight and Sons Ltd,Environmental Services,Materials - General,16/11/2017,41244,141.44
Lancaster City Council,30UH,George Speight and Sons Ltd,Environmental Services,Materials For Resale,16/11/2017,41245,668.60
Lancaster City Council,30UH,George Speight and Sons Ltd,Environmental Services,Materials For Resale,22/12/2017,41791,676.83
Lancaster City Council,30UH,George Speight and sons ltd,Environmental Services,Materials For Resale,24/10/2017,40774,683.01
Lancaster City Council,30UH,George Speight and Sons Lts,Environmental Services,Materials - General,24/10/2017,40773,87.53
Lancaster City Council,30UH,GerrysFishing,Environmental Services,Clothing & Uniforms,20/11/2017,41263,237.48
Lancaster City Council,30UH,Glasdon,Environmental Services,Equipment and Tools - General,17/10/2017,40698,871.28
Lancaster City Council,30UH,Greenfingertools/Mano Mano,Environmental Services,Equipment and Tools - General,07/11/2017,41079,28.20
Lancaster City Council,30UH,Greenhalghs Craft Bakery Ltd,Regeneration and Planning,Entertainment Fees,18/12/2017,41712,2.60
Lancaster City Council,30UH,Greenhalghs Craft Bakery Ltd,Regeneration and Planning,Entertainment Fees,18/12/2017,41711,10.50
Lancaster City Council,30UH,Greentech  Ltd,Environmental Services,R & M - General,28/12/2017,41801,310.33
Lancaster City Council,30UH,Greggs,Governance,Corporate Training Budget,11/10/2017,lpc000551,102.15
Lancaster City Council,30UH,Gustharts.com/PayPal,Health & Housing,Equipment and Tools - General,02/10/2017,bpc005700,26.60
Lancaster City Council,30UH,Hala Pet stores,Environmental Services,Materials - General,15/11/2017,41233,34.00
Lancaster City Council,30UH,Hala Pet Stores,Environmental Services,Materials - General,15/11/2017,41232,166.93
Lancaster City Council,30UH,HALDANE FISHER - GARSTANG TIMB,Environmental Services,Materials - General,29/11/2017,41421,28.00
Lancaster City Council,30UH,HALDANE FISHER - GARSTANG TIMB,Environmental Services,Other Construction Costs,29/11/2017,41419,379.20
Lancaster City Council,30UH,Halfords,Resources,Equipment and Tools - General,27/11/2017,ppc001125,99.17
Lancaster City Council,30UH,Harrisons Packaging Ltd,Environmental Services,Materials - General,28/12/2017,41798,202.60
Lancaster City Council,30UH,Health and Care,Governance,Equipment and Tools - General,11/10/2017,lpc000550,422.47
Lancaster City Council,30UH,Helloprint,Regeneration and Planning,Printing & Stationery,09/10/2017,40585,160.95
Lancaster City Council,30UH,Helloprint,Regeneration and Planning,Printing & Stationery,09/10/2017,40566,163.95
Lancaster City Council,30UH,Helloprint,Regeneration and Planning,Printing & Stationery,07/11/2017,41085,256.72
Lancaster City Council,30UH,Helloprint,Regeneration and Planning,Printing & Stationery,09/10/2017,40564,301.95
Lancaster City Council,30UH,Hesters Haberdashery,Governance,Celebrating Success Awards,31/10/2017,lpc000568,6.93
Lancaster City Council,30UH,HMCTS,Governance,Legal & Court Costs,03/11/2017,lpc000581,226.00
Lancaster City Council,30UH,HMCTS,Governance,Legal & Court Costs,16/11/2017,lpc000582,1600.00
Lancaster City Council,30UH,Holiday Express,Health & Housing,Service Training Budget,17/10/2017,spc002469,79.00
Lancaster City Council,30UH,Holiday Inn,Health & Housing,Service Training Budget,17/10/2017,spc002468,79.00
Lancaster City Council,30UH,Holiday Inn,Resources,Service Training Budget,03/11/2017,jpc001151,124.00
Lancaster City Council,30UH,Home Bargains,Regeneration and Planning,Entertainment Fees,18/12/2017,41716,1.64
Lancaster City Council,30UH,Home Bargains,Environmental Services,Hospitality,28/11/2017,41400,2.00
Lancaster City Council,30UH,Home Bargains,Environmental Services,Hospitality,28/11/2017,41399,2.15
Lancaster City Council,30UH,Home Bargains,Environmental Services,Office Equipment,07/11/2017,41121,3.30
Lancaster City Council,30UH,Home Bargains,Health & Housing,Equipment and Tools - General,21/11/2017,spc002537,6.86
Lancaster City Council,30UH,Home Bargains,Regeneration and Planning,Entertainment Fees,18/12/2017,41715,7.50
Lancaster City Council,30UH,Home Bargains,Environmental Services,Equipment and Tools - General,06/11/2017,41032,14.98
Lancaster City Council,30UH,Home Bargains,Environmental Services,Equipment and Tools - General,02/11/2017,40990,19.97
Lancaster City Council,30UH,Home Bargains,Health & Housing,Equipment and Tools - General,25/10/2017,spc002479,21.96
Lancaster City Council,30UH,Home Bargains,Health & Housing,Equipment and Tools - General,11/12/2017,spc002596,24.06
Lancaster City Council,30UH,Home Bargains,Health & Housing,Equipment and Tools - General,29/12/2017,bpc005914,35.09
Lancaster City Council,30UH,Home Bargains,Health & Housing,Marketing,30/10/2017,spc002486,44.88
Lancaster City Council,30UH,Home Bargains,Health & Housing,Equipment and Tools - General,22/11/2017,bpc005821,50.62
Lancaster City Council,30UH,Home Bargains,Health & Housing,Equipment and Tools - General,21/11/2017,spc002539,58.02
Lancaster City Council,30UH,Home Bargains,Health & Housing,Equipment and Tools - General,21/11/2017,spc002538,63.40
Lancaster City Council,30UH,Homebase,Regeneration and Planning,Equipment and Tools - General,23/11/2017,npc002207,4.75
Lancaster City Council,30UH,Homebase,Regeneration and Planning,Printing & Stationery,07/11/2017,41111,4.96
Lancaster City Council,30UH,Homebase,Regeneration and Planning,Marketing,07/11/2017,41102,15.37
Lancaster City Council,30UH,Homebase,Regeneration and Planning,Equipment and Tools - General,23/11/2017,npc002206,28.47
Lancaster City Council,30UH,Homebase,Environmental Services,Equipment and Tools - General,12/12/2017,41649,47.49
Lancaster City Council,30UH,Homebase,Environmental Services,R & M - Buildings (Within Service),29/11/2017,41430,65.95
Lancaster City Council,30UH,Homebase,Regeneration and Planning,Equipment and Tools - General,02/11/2017,npc002142,95.00
Lancaster City Council,30UH,Homebase,Regeneration and Planning,Marketing,07/11/2017,41108,139.78
Lancaster City Council,30UH,Honeycomb Ltd,Regeneration and Planning,Materials For Resale,20/11/2017,41320,172.12
Lancaster City Council,30UH,Hongkong MingLangTongDa Group ,Resources,Equipment and Tools - General,08/11/2017,fpc000264,4.90
Lancaster City Council,30UH,Hootsuite,Regeneration and Planning,Marketing,06/11/2017,npc002159,16.18
Lancaster City Council,30UH,Hootsuite,Regeneration and Planning,Marketing,30/11/2017,npc002225,16.46
Lancaster City Council,30UH,Hootsuite,Regeneration and Planning,Marketing,05/10/2017,npc002105,16.77
Lancaster City Council,30UH,House of Marbles,Regeneration and Planning,Materials For Resale,20/10/2017,40726,264.96
Lancaster City Council,30UH,Hygiena International,Health & Housing,Equipment and Tools - General,09/10/2017,spc002457,116.05
Lancaster City Council,30UH,Iceland,Regeneration and Planning,Entertainment Fees,18/12/2017,41714,4.22
Lancaster City Council,30UH,Ideal 365 ltd,Environmental Services,Cleaning Materials,07/11/2017,41127,8.15
Lancaster City Council,30UH,Ikea,Health & Housing,Equipment and Tools - General,29/10/2017,bpc005743,39.58
Lancaster City Council,30UH,Ikea,Health & Housing,Equipment and Tools - General,07/11/2017,bpc005802,52.58
Lancaster City Council,30UH,Ikea,Health & Housing,Equipment and Tools - General,29/10/2017,bpc005749,84.58
Lancaster City Council,30UH,In21 LTD,Health & Housing,Equipment and Tools - General,29/10/2017,bpc005739,37.49
Lancaster City Council,30UH,Information Commissioner`s Office,Governance,Information Management,27/10/2017,dpc000585,35.00
Lancaster City Council,30UH,Information Commissioner`s Office,Governance,Miscellaneous Licences,06/10/2017,dpc000575,35.00
Lancaster City Council,30UH,Information Commissioner`s Office,Governance,Subscriptions,13/12/2017,dpc000600,500.00
Lancaster City Council,30UH,Innova Trading Limited,Environmental Services,Equipment and Tools - General,21/11/2017,41266,1.66
Lancaster City Council,30UH,Insitute of Licensing,Health & Housing,Service Training Budget,02/10/2017,spc002415,125.00
Lancaster City Council,30UH,Instagram,Regeneration and Planning,Miscellaneous Advertising,03/10/2017,npc002086,2.74
Lancaster City Council,30UH,Instagram,Regeneration and Planning,Miscellaneous Advertising,03/10/2017,npc002089,8.20
Lancaster City Council,30UH,Instant Print,Health & Housing,Marketing,29/10/2017,bpc005751,6.67
Lancaster City Council,30UH,Instant Print,Health & Housing,Marketing,29/10/2017,bpc005750,11.66
Lancaster City Council,30UH,Instantprint,Regeneration and Planning,Marketing,05/10/2017,npc002104,4.16
Lancaster City Council,30UH,Instantprint,Regeneration and Planning,Printing & Stationery,07/11/2017,41114,22.49
Lancaster City Council,30UH,Instantprint,Regeneration and Planning,Equipment and Tools - General,23/11/2017,npc002210,26.00
Lancaster City Council,30UH,Instantprint,Health & Housing,Homelessness Priority Need Order,17/10/2017,spc002471,27.16
Lancaster City Council,30UH,Instantprint,Regeneration and Planning,Marketing,21/11/2017,npc002191,27.16
Lancaster City Council,30UH,Instantprint,Regeneration and Planning,Printing & Stationery,09/10/2017,40587,28.33
Lancaster City Council,30UH,Instantprint,Regeneration and Planning,Marketing,25/10/2017,npc002128,31.16
Lancaster City Council,30UH,Instantprint,Regeneration and Planning,Marketing,23/11/2017,npc002208,31.16
Lancaster City Council,30UH,Instantprint,Regeneration and Planning,Marketing,27/11/2017,npc002212,31.16
Lancaster City Council,30UH,Instantprint,Regeneration and Planning,Marketing,11/12/2017,npc002232,31.16
Lancaster City Council,30UH,Instantprint,Regeneration and Planning,Marketing,21/12/2017,npc002262,31.67
Lancaster City Council,30UH,Instantprint,Regeneration and Planning,Printing & Stationery,09/10/2017,40581,32.49
Lancaster City Council,30UH,Instantprint,Health & Housing,Printing & Stationery,07/11/2017,bpc005795,36.66
Lancaster City Council,30UH,Instantprint,Regeneration and Planning,Marketing,05/10/2017,npc002103,38.00
Lancaster City Council,30UH,Instantprint,Regeneration and Planning,Marketing,03/11/2017,npc002145,42.16
Lancaster City Council,30UH,InstantPrint,Health & Housing,Printing & Stationery,07/11/2017,bpc005794,42.16
Lancaster City Council,30UH,Instantprint,Regeneration and Planning,Marketing,09/11/2017,npc002183,45.16
Lancaster City Council,30UH,Instantprint,Regeneration and Planning,Printing & Stationery,07/11/2017,41096,45.16
Lancaster City Council,30UH,Instantprint,Regeneration and Planning,Marketing,06/11/2017,npc002161,45.83
Lancaster City Council,30UH,Instantprint,Health & Housing,Printing & Stationery,01/12/2017,bpc005859,46.16
Lancaster City Council,30UH,Instantprint,Regeneration and Planning,Printing & Stationery,29/12/2017,41840,49.26
Lancaster City Council,30UH,Instantprint,Regeneration and Planning,Printing & Stationery,07/11/2017,41084,51.16
Lancaster City Council,30UH,Instantprint,Regeneration and Planning,Marketing,10/11/2017,npc002185,54.16
Lancaster City Council,30UH,Instantprint,Regeneration and Planning,Marketing,06/11/2017,npc002162,59.00
Lancaster City Council,30UH,Instantprint,Regeneration and Planning,Printing & Stationery,05/12/2017,41576,61.99
Lancaster City Council,30UH,InstantPrint,Health & Housing,Printing & Stationery,02/10/2017,bpc005710,63.16
Lancaster City Council,30UH,Instantprint,Regeneration and Planning,Marketing,08/11/2017,npc002179,77.16
Lancaster City Council,30UH,Instantprint,Regeneration and Planning,Marketing,21/12/2017,npc002261,79.00
Lancaster City Council,30UH,Instantprint,Regeneration and Planning,Marketing,11/12/2017,npc002231,113.17
Lancaster City Council,30UH,Instantprint,Regeneration and Planning,Printing & Stationery,07/11/2017,41113,148.33
Lancaster City Council,30UH,Instantprint,Regeneration and Planning,Marketing,22/11/2017,npc002197,168.00
Lancaster City Council,30UH,Instantprint,Regeneration and Planning,Marketing,23/11/2017,npc002209,180.00
Lancaster City Council,30UH,Instantprint,Environmental Services,Materials - General,15/11/2017,41225,220.83
Lancaster City Council,30UH,Instantprint,Regeneration and Planning,Marketing,08/11/2017,npc002180,224.17
Lancaster City Council,30UH,Instantprint,Regeneration and Planning,Printing & Stationery,29/12/2017,41839,370.00
Lancaster City Council,30UH,IOSH MS,Governance,Corporate Training Budget,30/11/2017,lpc000591,135.00
Lancaster City Council,30UH,IOSH MS,Governance,Corporate Training Budget,30/11/2017,lpc000592,200.00
Lancaster City Council,30UH,ironmongery direct,Health & Housing,Materials (Minor Adaptations),07/11/2017,spc002515,108.00
Lancaster City Council,30UH,Isle Of Man Steampacket,Regeneration and Planning,Concerts - General,31/10/2017,40957,50.50
Lancaster City Council,30UH,ITC Sales,Resources,Computer Equipment,03/11/2017,jpc001128,147.94
Lancaster City Council,30UH,IVO Group Ltd,Environmental Services,Materials - General,17/10/2017,40710,5626.00
Lancaster City Council,30UH,J Atkinson and Co,Environmental Services,Materials For Resale,28/12/2017,41809,7.80
Lancaster City Council,30UH,J Atkinson and Co,Environmental Services,Materials For Resale,24/10/2017,40761,32.50
Lancaster City Council,30UH,J Atkinson and Co,Environmental Services,Materials For Resale,16/11/2017,41249,70.68
Lancaster City Council,30UH,J Atkinson and Co,Health & Housing,Materials For Resale,30/10/2017,bpc005766,331.88
Lancaster City Council,30UH,J Atkinson and Co,Health & Housing,Materials For Resale,24/11/2017,bpc005832,354.19
Lancaster City Council,30UH,J Atkinson and Co,Health & Housing,Materials For Resale,18/12/2017,bpc005897,403.40
Lancaster City Council,30UH,J Atkinson and Co,Health & Housing,Materials - General,24/11/2017,bpc005833,438.25
Lancaster City Council,30UH,J Atkinson and Co,Health & Housing,Materials For Resale,24/11/2017,bpc005833,443.20
Lancaster City Council,30UH,J Atkinson and Co,Health & Housing,Materials For Resale,30/10/2017,bpc005767,602.00
Lancaster City Council,30UH,J Atkinson and Co,Environmental Services,Materials For Resale,28/12/2017,41808,619.87
Lancaster City Council,30UH,J Atkinson and Co,Environmental Services,Materials For Resale,16/11/2017,41248,858.16
Lancaster City Council,30UH,J Atkinson and Co,Environmental Services,Materials For Resale,24/10/2017,40760,1339.10
Lancaster City Council,30UH,J-A Blinds,Health & Housing,Homelessness Priority Need Order,23/11/2017,spc002551,303.45
Lancaster City Council,30UH,JamJar Print,Regeneration and Planning,Marketing,07/11/2017,npc002177,120.92
Lancaster City Council,30UH,JD Sports /PayPal,Health & Housing,Clothing & Uniforms,02/10/2017,bpc005696,-45.00
Lancaster City Council,30UH,Jetchem Systems Limited,Environmental Services,Equipment and Tools - General,04/12/2017,41537,4807.32
Lancaster City Council,30UH,Jetchem Systems Limited,Environmental Services,Equipment and Tools - General,04/12/2017,41536,8333.33
Lancaster City Council,30UH,JMP Foodservice,Environmental Services,Materials For Resale,22/12/2017,41780,154.17
Lancaster City Council,30UH,JMP Foodservice,Environmental Services,Materials For Resale,24/10/2017,40763,167.11
Lancaster City Council,30UH,JMP Foodservice,Environmental Services,Materials For Resale,16/11/2017,41242,284.79
Lancaster City Council,30UH,JMP Foodservice,Environmental Services,Materials For Resale,22/12/2017,41781,335.26
Lancaster City Council,30UH,JMP Foodservice,Environmental Services,Materials For Resale,24/10/2017,40764,383.32
Lancaster City Council,30UH,JMP Foodservice,Environmental Services,Materials For Resale,16/11/2017,41243,403.36
Lancaster City Council,30UH,John Monaghan Ltd,Resources,R & M - Buildings,01/11/2017,ppc001099,39.66
Lancaster City Council,30UH,John Monaghan Ltd,Resources,R & M - Buildings,15/11/2017,ppc001120,39.66
Lancaster City Council,30UH,John Monaghan Ltd,Resources,R & M - Buildings,03/10/2017,ppc001060,110.86
Lancaster City Council,30UH,Johnnie Johnson Housing,Environmental Services,Materials - General,28/11/2017,41394,50.07
Lancaster City Council,30UH,Johnsons,Health & Housing,Equipment and Tools - General,30/11/2017,bpc005858,20.00
Lancaster City Council,30UH,Johnsons dry cleaners,Health & Housing,Other Cleaning,21/11/2017,spc002541,40.46
Lancaster City Council,30UH,Johnsons the Cleaners,Health & Housing,Other Cleaning,18/12/2017,bpc005896,11.97
Lancaster City Council,30UH,Johnsons the Cleaners,Health & Housing,Other Cleaning,13/12/2017,bpc005889,16.67
Lancaster City Council,30UH,Johnsons the Cleaners,Health & Housing,Other Cleaning,18/12/2017,hpc000650,151.25
Lancaster City Council,30UH,JP Lennard,Health & Housing,Equipment and Tools - General,06/11/2017,bpc005790,1395.00
Lancaster City Council,30UH,JPL,Health & Housing,Equipment and Tools - General,24/11/2017,bpc005834,120.18
Lancaster City Council,30UH,JPL,Health & Housing,Equipment and Tools - General,23/10/2017,bpc005722,134.15
Lancaster City Council,30UH,Kays Cards Ltd,Environmental Services,Equipment and Tools - General,11/10/2017,40908,15.42
Lancaster City Council,30UH,Kays Cards Ltd,Environmental Services,Equipment and Tools - General,10/12/2017,41618,25.29
Lancaster City Council,30UH,Keycraft Ltd,Environmental Services,Materials For Resale,24/10/2017,40762,147.60
Lancaster City Council,30UH,Keysoft Solutions Ltd,Regeneration and Planning,Software Purchase\Licences,03/11/2017,npc002147,300.00
Lancaster City Council,30UH,Kiddycover Limited,Health & Housing,Syrian Ressetlement Programme,03/10/2017,spc002420,16.66
Lancaster City Council,30UH,Killgerm,Health & Housing,Materials - General,12/10/2017,spc002464,122.86
Lancaster City Council,30UH,Killgerm,Health & Housing,Materials - General,21/11/2017,spc002543,1266.67
Lancaster City Council,30UH,Killgerm Chemicals Ltd,Health & Housing,Service Training Budget,23/10/2017,spc002473,300.00
Lancaster City Council,30UH,Kit Out My Office,Health & Housing,Equipment and Tools - General,29/10/2017,bpc005748,127.87
Lancaster City Council,30UH,Knight Training,Environmental Services,Service Training Budget,30/12/2017,41859,180.00
Lancaster City Council,30UH,Lancashire County Council,Environmental Services,R & M - Buildings (Within Service),28/12/2017,41803,500.00
Lancaster City Council,30UH,Lancaster & District C,Health & Housing,Use Of Public Tpt - Officers,24/11/2017,bpc005829,125.00
Lancaster City Council,30UH,Lancaster Brewery,Health & Housing,Equipment and Tools - General,05/10/2017,spc002435,3.75
Lancaster City Council,30UH,Lancaster Brewery,Regeneration and Planning,Bar Supplies,14/12/2017,npc002251,163.20
Lancaster City Council,30UH,Lancaster Brewery,Regeneration and Planning,Bar Supplies,21/11/2017,npc002195,163.20
Lancaster City Council,30UH,Lancaster Brewery Company Ltd,Environmental Services,Materials For Resale,27/11/2017,41351,304.20
Lancaster City Council,30UH,Lancaster City Laundry,Resources,Other Cleaning,13/10/2017,ppc001083,115.00
Lancaster City Council,30UH,Lancaster House Hotel,Regeneration and Planning,Services - Consultants,05/10/2017,npc002102,12.00
Lancaster City Council,30UH,Lancaster House Hotel,Regeneration and Planning,Exhibitions & Events - Expenses,06/10/2017,npc002106,321.67
Lancaster City Council,30UH,Lancaster House Hotel,Regeneration and Planning,Services - Consultants,03/10/2017,npc002092,390.00
Lancaster City Council,30UH,Lancaster Training Services Ltd,Environmental Services,Service Training Budget,04/12/2017,41520,78.00
Lancaster City Council,30UH,Lancaster Training Services Ltd,Environmental Services,Service Training Budget,06/11/2017,41067,115.00
Lancaster City Council,30UH,Lancaster Training Services Ltd,Environmental Services,Service Training Budget,06/11/2017,41069,115.00
Lancaster City Council,30UH,Lancaster Training Services Ltd,Environmental Services,Service Training Budget,06/11/2017,41071,115.00
Lancaster City Council,30UH,Lancaster Training Services Ltd,Environmental Services,Service Training Budget,04/12/2017,41521,115.00
Lancaster City Council,30UH,Lancaster Training Services Ltd,Environmental Services,Service Training Budget,06/11/2017,41066,351.00
Lancaster City Council,30UH,Lancaster Training Services Ltd,Environmental Services,Service Training Budget,06/11/2017,41068,378.00
Lancaster City Council,30UH,Lancaster Training Services Ltd,Environmental Services,Service Training Budget,07/11/2017,41109,486.00
Lancaster City Council,30UH,Lancaster University Network Services Ltd t/a LUNS,Management Team,Use Of Public Tpt - Officers,12/10/2017,mpc000085,143.18
Lancaster City Council,30UH,Lancaster Vets,Health & Housing,Services - Consultants,23/11/2017,spc002553,83.22
Lancaster City Council,30UH,Lathams of Broughton Ltd,Environmental Services,Materials For Resale,28/12/2017,41810,1455.05
Lancaster City Council,30UH,Lathams of Broughton Ltd,Environmental Services,Materials For Resale,24/10/2017,40772,1634.35
Lancaster City Council,30UH,Lathams of Broughton Ltd,Environmental Services,Materials For Resale,27/11/2017,41349,1690.60
Lancaster City Council,30UH,Law Society ,Governance,Professional Fees Etc,11/10/2017,lpc000548,318.00
Lancaster City Council,30UH,LCR,Regeneration and Planning,Equipment Maintenance,30/10/2017,40879,645.00
Lancaster City Council,30UH,Les Mills Fitness,Health & Housing,Equipment and Tools - General,13/12/2017,bpc005880,22.92
Lancaster City Council,30UH,Les Mills Fitness,Health & Housing,Equipment and Tools - General,13/12/2017,bpc005882,22.92
Lancaster City Council,30UH,Les Mills Fitness,Health & Housing,Equipment and Tools - General,13/12/2017,bpc005883,22.92
Lancaster City Council,30UH,Les Mills Fitness,Health & Housing,Equipment and Tools - General,13/12/2017,bpc005884,22.92
Lancaster City Council,30UH,Les Mills Fitness,Health & Housing,Equipment and Tools - General,13/12/2017,bpc005881,45.83
Lancaster City Council,30UH,Lidl,Environmental Services,R & M - Buildings (Within Service),08/11/2017,41167,6.65
Lancaster City Council,30UH,Lloyd Worrall,Resources,Fixtures & Fittings - General,24/10/2017,ppc001084,61.00
Lancaster City Council,30UH,London Pupae Supplies Ltd,Environmental Services,Materials - General,28/12/2017,41893,786.50
Lancaster City Council,30UH,London Pupae Supplies Ltd,Environmental Services,Equipment and Tools - General,15/11/2017,41231,1102.00
Lancaster City Council,30UH,London Underground,Governance,Corporate Training Budget,11/10/2017,lpc000554,4.90
Lancaster City Council,30UH,Lothersdale,Regeneration and Planning,Exhibitions & Events - Expenses,15/11/2017,npc002188,393.33
Lancaster City Council,30UH,Love2Shop,Regeneration and Planning,Marketing,09/10/2017,40573,50.00
Lancaster City Council,30UH,Love2Shop,Regeneration and Planning,Exhibitions,07/11/2017,41093,75.00
Lancaster City Council,30UH,Love2Shop,Regeneration and Planning,Exhibitions,05/12/2017,41574,100.00
Lancaster City Council,30UH,LUL,Governance,Corporate Training Budget,31/10/2017,lpc000556,4.90
Lancaster City Council,30UH,Lumimati,Health & Housing,Equipment and Tools - General,29/12/2017,bpc005919,375.02
Lancaster City Council,30UH,Lyndoe Discount Office Product,Resources,Equipment and Tools - General,24/10/2017,ppc001085,20.46
Lancaster City Council,30UH,Lyreco,Resources,Computer Consumables,03/11/2017,jpc001130,3.27
Lancaster City Council,30UH,Lyreco,Governance,Celebrating Success Awards,31/10/2017,lpc000574,6.86
Lancaster City Council,30UH,Lyreco,Resources,Printing & Stationery,13/12/2017,fpc000275,9.94
Lancaster City Council,30UH,Lyreco,Management Team,Office Equipment,18/10/2017,mpc000088,11.24
Lancaster City Council,30UH,Lyreco,Governance,Printing & Stationery,30/11/2017,lpc000583,17.17
Lancaster City Council,30UH,Lyreco,Governance,Printing & Stationery,31/10/2017,lpc000575,19.87
Lancaster City Council,30UH,Lyreco,Management Team,Printing & Stationery,13/10/2017,mpc000086,19.88
Lancaster City Council,30UH,Lyreco,Environmental Services,Printing & Stationery,30/12/2017,41863,24.81
Lancaster City Council,30UH,Lyreco,Regeneration and Planning,Printing & Stationery,12/12/2017,npc002239,27.92
Lancaster City Council,30UH,Lyreco,Governance,Printing & Stationery,21/12/2017,lpc000596,29.02
Lancaster City Council,30UH,Lyreco,Regeneration and Planning,Printing & Stationery,07/11/2017,41062,29.08
Lancaster City Council,30UH,Lyreco,Governance,Printing & Stationery,30/11/2017,lpc000584,33.98
Lancaster City Council,30UH,Lyreco,Resources,Printing & Stationery,07/11/2017,ppc001102,36.67
Lancaster City Council,30UH,Lyreco,Governance,Printing & Stationery,06/10/2017,lpc000542,37.88
Lancaster City Council,30UH,Lyreco,Governance,Printing & Stationery,31/10/2017,lpc000573,44.13
Lancaster City Council,30UH,Lyreco,Governance,Printing & Stationery,21/12/2017,lpc000597,49.12
Lancaster City Council,30UH,Lyreco,Governance,Printing & Stationery,05/12/2017,dpc000599,80.00
Lancaster City Council,30UH,Lyreco,Governance,Printing & Stationery,06/10/2017,lpc000541,85.22
Lancaster City Council,30UH,Lyreco,Governance,Printing & Stationery,17/10/2017,dpc000580,85.36
Lancaster City Council,30UH,Lyreco,Resources,Printing & Stationery,27/11/2017,fpc000270,106.79
Lancaster City Council,30UH,M&S,Resources,Materials For Resale,05/12/2017,ppc001133,3.22
Lancaster City Council,30UH,M&S,Governance,Catering Provisions,11/10/2017,dpc000577,5.00
Lancaster City Council,30UH,M&S,Governance,Catering Provisions,29/11/2017,dpc000591,20.60
Lancaster City Council,30UH,M&S,Governance,Catering Provisions,30/10/2017,dpc000589,23.55
Lancaster City Council,30UH,M&S,Governance,Civic Receptions & Mayoral Functions,19/12/2017,dpc000604,186.50
Lancaster City Council,30UH,M6 Toll,Governance,Service Training Budget,30/11/2017,lpc000585,5.90
Lancaster City Council,30UH,M6 Toll,Governance,Service Training Budget,30/11/2017,lpc000586,5.90
Lancaster City Council,30UH,MacMillan Publishing,Regeneration and Planning,Materials For Resale,30/10/2017,40876,19.47
Lancaster City Council,30UH,Mailchimp,Regeneration and Planning,Consultation,09/10/2017,npc002110,22.53
Lancaster City Council,30UH,Mailchimp,Regeneration and Planning,Consultation,30/11/2017,npc002219,22.81
Lancaster City Council,30UH,Mailchimp,Regeneration and Planning,Consultation,03/11/2017,npc002146,23.16
Lancaster City Council,30UH,Mailchimp,Regeneration and Planning,Marketing,12/12/2017,npc002242,56.73
Lancaster City Council,30UH,Mailchimp,Regeneration and Planning,Marketing,30/11/2017,npc002226,57.90
Lancaster City Council,30UH,Mailchimp,Regeneration and Planning,Marketing,09/10/2017,npc002111,58.16
Lancaster City Council,30UH,Mailchimp,Regeneration and Planning,Internet Provision,09/10/2017,40575,111.30
Lancaster City Council,30UH,Mailchimp,Regeneration and Planning,Internet Provision,29/12/2017,41838,113.66
Lancaster City Council,30UH,Mailchimp,Regeneration and Planning,Internet Provision,07/11/2017,41095,115.01
Lancaster City Council,30UH,Mailchimp,Regeneration and Planning,Internet Provision,05/12/2017,41575,115.56
Lancaster City Council,30UH,Makro,Resources,Catering Provisions,04/10/2017,ppc001062,82.93
Lancaster City Council,30UH,MALLATITE,Environmental Services,R & M - General,18/12/2017,41722,270.00
Lancaster City Council,30UH,Manchester Airport - Car Parks,Health & Housing,Use Of Public Tpt - Officers,24/11/2017,bpc005830,41.84
Lancaster City Council,30UH,ManoMano,Environmental Services,Equipment and Tools - General,10/10/2017,40666,23.87
Lancaster City Council,30UH,Marvellous Group/PayPal,Health & Housing,Equipment and Tools - General,15/12/2017,bpc005895,150.00
Lancaster City Council,30UH,Matalan,Health & Housing,Equipment and Tools - General,20/12/2017,spc002626,20.00
Lancaster City Council,30UH,Matalan,Health & Housing,Clothing & Uniforms,22/11/2017,spc002548,35.00
Lancaster City Council,30UH,Matalan,Health & Housing,Capital Payments To Contractors,30/10/2017,spc002488,50.00
Lancaster City Council,30UH,Matalan,Health & Housing,Equipment and Tools - General,22/11/2017,spc002547,69.21
Lancaster City Council,30UH,Matalan,Health & Housing,Equipment and Tools - General,22/11/2017,spc002546,140.00
Lancaster City Council,30UH,MBW,Regeneration and Planning,Bar Supplies,30/11/2017,npc002227,329.01
Lancaster City Council,30UH,MG Legal,Governance,Services - Legal Costs,29/12/2017,lpc000612,300.00
Lancaster City Council,30UH,MG Legal Solutions,Governance,Services - Legal Costs,31/10/2017,lpc000561,300.00
Lancaster City Council,30UH,MGD Online,Health & Housing,Tenants Participation,25/10/2017,hpc000602,83.32
Lancaster City Council,30UH,Michael Joyce,Health & Housing,Equipment and Tools - General,29/10/2017,bpc005741,14.96
Lancaster City Council,30UH,MLT Trading,Health & Housing,Equipment and Tools - General,29/10/2017,bpc005742,13.32
Lancaster City Council,30UH,Mobility Linx,Health & Housing,Materials (Minor Adaptations),16/10/2017,spc002465,15.00
Lancaster City Council,30UH,Mobility Linx,Health & Housing,Materials (Minor Adaptations),05/10/2017,spc002432,16.25
Lancaster City Council,30UH,Mobility Linx,Health & Housing,Materials (Minor Adaptations),23/11/2017,spc002550,38.00
Lancaster City Council,30UH,Mobility Linx,Health & Housing,Materials (Minor Adaptations),19/12/2017,spc002615,45.00
Lancaster City Council,30UH,Mobility Linx,Health & Housing,Materials (Minor Adaptations),20/12/2017,spc002620,66.00
Lancaster City Council,30UH,Mobility Linx,Health & Housing,Materials (Minor Adaptations),04/10/2017,spc002422,150.00
Lancaster City Council,30UH,Moo,Regeneration and Planning,Marketing,30/11/2017,npc002218,40.74
Lancaster City Council,30UH,Moorgate News Ltd,Resources,Remembrance Day,04/12/2017,ppc001130,5.00
Lancaster City Council,30UH,Morrisons,Environmental Services,Cleaning Materials,30/12/2017,41865,0.00
Lancaster City Council,30UH,Morrisons,Regeneration and Planning,Catering Provisions,11/12/2017,npc002233,0.92
Lancaster City Council,30UH,Morrisons,Regeneration and Planning,Exhibitions & Events - Expenses,14/10/2017,npc002114,1.25
Lancaster City Council,30UH,Morrisons,Regeneration and Planning,Exhibitions & Events - Expenses,05/12/2017,npc002230,1.50
Lancaster City Council,30UH,Morrisons,Regeneration and Planning,Exhibitions & Events - Expenses,26/10/2017,npc002135,1.67
Lancaster City Council,30UH,Morrisons,Regeneration and Planning,Exhibitions & Events - Expenses,11/10/2017,npc002113,4.57
Lancaster City Council,30UH,Morrisons,Environmental Services,Hospitality,08/11/2017,41169,5.18
Lancaster City Council,30UH,Morrisons,Regeneration and Planning,Catering Provisions,03/10/2017,npc002079,5.42
Lancaster City Council,30UH,Morrisons,Regeneration and Planning,Printing & Stationery,25/10/2017,npc002129,6.67
Lancaster City Council,30UH,Morrisons,Regeneration and Planning,Exhibitions & Events - Expenses,05/12/2017,npc002229,6.75
Lancaster City Council,30UH,Morrisons,Environmental Services,Hospitality,07/11/2017,41122,7.04
Lancaster City Council,30UH,Morrisons,Environmental Services,Cleaning Materials,10/12/2017,41620,7.17
Lancaster City Council,30UH,Morrisons,Regeneration and Planning,Catering Provisions,27/10/2017,npc002137,7.90
Lancaster City Council,30UH,Morrisons,Environmental Services,Entertainment Fees,12/12/2017,41650,8.75
Lancaster City Council,30UH,Morrisons,Environmental Services,Hospitality,30/12/2017,41865,9.62
Lancaster City Council,30UH,Morrisons,Regeneration and Planning,Exhibitions & Events - Expenses,22/10/2017,npc002124,11.08
Lancaster City Council,30UH,Morrisons,Regeneration and Planning,Catering Provisions,27/10/2017,npc002138,11.34
Lancaster City Council,30UH,Morrisons,Regeneration and Planning,Exhibitions & Events - Expenses,22/10/2017,npc002123,11.67
Lancaster City Council,30UH,Morrisons,Regeneration and Planning,Bar Supplies,01/10/2017,npc002073,12.10
Lancaster City Council,30UH,Morrisons,Environmental Services,Entertainment Fees,10/12/2017,41620,17.00
Lancaster City Council,30UH,Morrisons,Regeneration and Planning,Exhibitions & Events - Expenses,21/10/2017,npc002121,19.27
Lancaster City Council,30UH,Morrisons,Regeneration and Planning,Exhibitions & Events - Expenses,13/11/2017,npc002186,20.15
Lancaster City Council,30UH,Morrisons,Regeneration and Planning,Exhibitions & Events - Expenses,13/11/2017,npc002187,20.79
Lancaster City Council,30UH,Morrisons,Regeneration and Planning,Exhibitions & Events - Expenses,26/10/2017,npc002136,22.50
Lancaster City Council,30UH,Morrisons,Regeneration and Planning,Bar Supplies,06/10/2017,npc002107,28.37
Lancaster City Council,30UH,Morrisons,Regeneration and Planning,Exhibitions & Events - Expenses,21/11/2017,npc002192,34.74
Lancaster City Council,30UH,Morrisons,Health & Housing,Services - General,30/11/2017,spc002568,66.17
Lancaster City Council,30UH,My Ringo,Health & Housing,Car Allowances - Officers,09/10/2017,spc002451,1.80
Lancaster City Council,30UH,My Ringo,Health & Housing,Car Allowances - Officers,04/12/2017,spc002573,2.50
Lancaster City Council,30UH,My Ringo,Health & Housing,Car Allowances - Officers,09/10/2017,spc002450,2.90
Lancaster City Council,30UH,My Ringo,Health & Housing,Car Allowances - Officers,30/10/2017,spc002492,3.40
Lancaster City Council,30UH,My Ringo,Health & Housing,Car Allowances - Officers,04/12/2017,spc002574,3.40
Lancaster City Council,30UH,My Ringo,Health & Housing,Car Allowances - Officers,09/10/2017,spc002452,4.00
Lancaster City Council,30UH,Namesco,Regeneration and Planning,Internet Provision,07/11/2017,41081,21.99
Lancaster City Council,30UH,National rail,Governance,Service Training Budget,04/10/2017,lpc000540,109.29
Lancaster City Council,30UH,NCC Home Learning,Governance,Service Training Budget,21/12/2017,lpc000599,602.00
Lancaster City Council,30UH,Next,Health & Housing,Clothing & Uniforms,11/12/2017,spc002594,-41.67
Lancaster City Council,30UH,Next,Health & Housing,Clothing & Uniforms,11/12/2017,spc002595,33.33
Lancaster City Council,30UH,Next,Health & Housing,Equipment and Tools - General,06/10/2017,spc002445,83.99
Lancaster City Council,30UH,Next,Health & Housing,Clothing & Uniforms,06/10/2017,spc002449,86.66
Lancaster City Council,30UH,Next,Health & Housing,Clothing & Uniforms,22/11/2017,spc002549,115.82
Lancaster City Council,30UH,Nisbets,Environmental Services,Equipment and Tools - General,28/12/2017,41814,106.98
Lancaster City Council,30UH,Nisbets,Health & Housing,Equipment and Tools - General,07/11/2017,bpc005801,197.56
Lancaster City Council,30UH,Nisbits,Health & Housing,Equipment and Tools - General,15/10/2017,bpc005715,98.39
Lancaster City Council,30UH,North West Equine Vets Ltd,Health & Housing,Services - Consultants,12/12/2017,spc002602,31.03
Lancaster City Council,30UH,North West Equine Vets Ltd,Health & Housing,Services - Consultants,23/11/2017,spc002552,136.21
Lancaster City Council,30UH,North West Hospitality,Health & Housing,Services - Contaminated Land,19/12/2017,spc002614,390.00
Lancaster City Council,30UH,North West Hospitality Show,Health & Housing,Services - Contaminated Land,30/10/2017,spc002499,247.00
Lancaster City Council,30UH,Northern Rail,Health & Housing,Services - Civil Contingencies,25/10/2017,spc002477,1.90
Lancaster City Council,30UH,Northern Rail,Regeneration and Planning,Use Of Public Tpt - Officers,12/12/2017,npc002237,5.00
Lancaster City Council,30UH,Northern Rail,Health & Housing,Use Of Public Tpt - Officers,26/10/2017,spc002482,12.10
Lancaster City Council,30UH,Northern Rail,Governance,Service Training Budget,09/10/2017,lpc000543,14.20
Lancaster City Council,30UH,Northern Rail,Health & Housing,Use Of Public Tpt - Officers,22/11/2017,spc002544,20.50
Lancaster City Council,30UH,Northern Rail,Health & Housing,Use Of Public Tpt - Officers,01/11/2017,spc002505,24.40
Lancaster City Council,30UH,Northern Rail,Health & Housing,Use Of Public Tpt - Officers,01/11/2017,spc002504,33.80
Lancaster City Council,30UH,Northern Rail,Health & Housing,Use Of Public Tpt - Officers,23/10/2017,spc002474,93.20
Lancaster City Council,30UH,Northern Rail,Health & Housing,Use Of Public Tpt - Officers,18/10/2017,spc002472,102.50
Lancaster City Council,30UH,npta,Health & Housing,Equipment and Tools - General,06/10/2017,spc002440,8.34
Lancaster City Council,30UH,NPTA,Health & Housing,Equipment and Tools - General,06/10/2017,spc002439,231.67
Lancaster City Council,30UH,Office Furniture Online,Health & Housing,Equipment and Tools - General,29/10/2017,bpc005754,216.00
Lancaster City Council,30UH,Office Stationery,Regeneration and Planning,Printing & Stationery,09/10/2017,40592,33.49
Lancaster City Council,30UH,"Oglethorp, Sturton and Gillibr",Governance,Services - Legal Costs,29/12/2017,lpc000610,300.00
Lancaster City Council,30UH,Old Bakehouse ,Regeneration and Planning,Management Plan Projects,06/11/2017,npc002165,3.25
Lancaster City Council,30UH,Old Bakehouse ,Regeneration and Planning,Management Plan Projects,06/11/2017,npc002164,18.08
Lancaster City Council,30UH,OPUS ENERGY,Health & Housing,Electricity,31/10/2017,hpc000605,20.93
Lancaster City Council,30UH,OPUS ENERGY,Health & Housing,Electricity,05/12/2017,hpc000639,22.13
Lancaster City Council,30UH,original copy centre,Health & Housing,Equipment and Tools - General,06/10/2017,spc002446,60.00
Lancaster City Council,30UH,OSG,Governance,Services - Legal Costs,31/10/2017,lpc000565,300.00
Lancaster City Council,30UH,Our Weigh,Health & Housing,Equipment and Tools - General,29/10/2017,bpc005747,69.73
Lancaster City Council,30UH,Outdoor Look,Health & Housing,Equipment and Tools - General,09/10/2017,spc002456,47.50
Lancaster City Council,30UH,Paint and Decorative supplies,Regeneration and Planning,Equipment and Tools - General,31/10/2017,npc002140,65.25
Lancaster City Council,30UH,Palintest,Health & Housing,Equipment and Tools - General,19/12/2017,spc002613,145.55
Lancaster City Council,30UH,Papo,Regeneration and Planning,Materials For Resale,07/11/2017,41064,584.86
Lancaster City Council,30UH,Parcelforce Worldwide,Health & Housing,Printing & Stationery,30/10/2017,bpc005763,36.32
Lancaster City Council,30UH,Party Delights,Health & Housing,Marketing & Promotion,09/10/2017,spc002460,61.98
Lancaster City Council,30UH,PayPal - Screwfix,Health & Housing,Equipment and Tools - General,02/10/2017,bpc005698,20.82
Lancaster City Council,30UH,PayPal / argos.co.uk,Health & Housing,Equipment and Tools - General,30/11/2017,bpc005844,28.28
Lancaster City Council,30UH,PayPal / JAK Water Systems,Health & Housing,Equipment and Tools - General,30/11/2017,bpc005846,375.00
Lancaster City Council,30UH,PayPal / RockRun,Health & Housing,Equipment and Tools - General,02/10/2017,bpc005701,30.00
Lancaster City Council,30UH,Paypal CKB Ltd,Regeneration and Planning,Exhibitions,05/12/2017,41577,61.08
Lancaster City Council,30UH,PayPal Marvellous Group,Health & Housing,Services - General,31/10/2017,bpc005776,125.00
Lancaster City Council,30UH,PayPal-HifiTower,Health & Housing,Equipment and Tools - General,02/10/2017,bpc005697,-124.16
Lancaster City Council,30UH,Peregrine Livefoods,Environmental Services,Materials - General,28/12/2017,41898,15.97
Lancaster City Council,30UH,Peregrine Livefoods,Environmental Services,Materials - General,10/10/2017,40623,18.00
Lancaster City Council,30UH,Peregrine Livefoods,Environmental Services,Materials - General,31/10/2017,40907,25.09
Lancaster City Council,30UH,Peregrine Livefoods,Environmental Services,Materials - General,10/10/2017,40622,26.37
Lancaster City Council,30UH,Peregrine Livefoods,Environmental Services,Materials - General,30/10/2017,40904,29.02
Lancaster City Council,30UH,Peregrine Livefoods,Environmental Services,Materials - General,31/10/2017,40906,29.63
Lancaster City Council,30UH,Peregrine Livefoods,Environmental Services,Materials - General,10/10/2017,40626,38.25
Lancaster City Council,30UH,Peregrine Livefoods,Environmental Services,Materials - General,30/10/2017,40899,40.61
Lancaster City Council,30UH,Peregrine Livefoods,Environmental Services,Materials - General,04/12/2017,41511,43.48
Lancaster City Council,30UH,Peregrine Livefoods,Environmental Services,Materials - General,28/12/2017,41897,123.24
Lancaster City Council,30UH,Peregrine Livefoods,Environmental Services,Materials - General,04/12/2017,41510,180.67
Lancaster City Council,30UH,Physical ,Health & Housing,Equipment and Tools - General,30/11/2017,bpc005855,585.23
Lancaster City Council,30UH,Piktochart,Regeneration and Planning,Marketing,06/11/2017,npc002160,22.56
Lancaster City Council,30UH,Pinnacle Response Ltd,Health & Housing,Equipment and Tools - General,06/10/2017,spc002442,3570.00
Lancaster City Council,30UH,Planglow,Health & Housing,Materials For Resale,01/11/2017,bpc005783,198.38
Lancaster City Council,30UH,Planglow,Health & Housing,Materials - General,08/11/2017,bpc005806,295.12
Lancaster City Council,30UH,Playdale Playgrounds Ltd,Environmental Services,Materials - General,22/11/2017,41287,300.33
Lancaster City Council,30UH,Pollock Lifts,Health & Housing,Syrian Ressetlement Programme,04/10/2017,spc002425,550.00
Lancaster City Council,30UH,Post Office Ltd,Governance,Support - Postage,21/12/2017,lpc000600,2.60
Lancaster City Council,30UH,Post Office Ltd,Regeneration and Planning,Printing & Stationery,02/10/2017,40442,6.45
Lancaster City Council,30UH,Post Office Ltd,Regeneration and Planning,Printing & Stationery,02/10/2017,40443,7.25
Lancaster City Council,30UH,Post Office Ltd,Regeneration and Planning,Printing & Stationery,20/12/2017,npc002257,19.89
Lancaster City Council,30UH,POTTERY BASEMENT,Environmental Services,Hospitality,28/11/2017,41397,50.97
Lancaster City Council,30UH,Poundland,Regeneration and Planning,Marketing,07/11/2017,41119,14.21
Lancaster City Council,30UH,PPL,Resources,Miscellaneous Licences,03/10/2017,ppc001058,133.12
Lancaster City Council,30UH,Premier Fittings Direct,Environmental Services,Equipment and Tools - General,14/11/2017,41213,20.00
Lancaster City Council,30UH,Premier Inn,Resources,Conferences & Seminars,30/11/2017,fpc000272,37.50
Lancaster City Council,30UH,Premier Inn,Health & Housing,Equipment and Tools - General,05/12/2017,bpc005865,54.17
Lancaster City Council,30UH,Premier Inn,Health & Housing,Equipment and Tools - General,05/12/2017,bpc005866,54.17
Lancaster City Council,30UH,Premier Inn,Health & Housing,Service Training Budget,02/11/2017,spc002509,55.00
Lancaster City Council,30UH,Premier Inn,Health & Housing,Equipment and Tools - General,05/12/2017,bpc005870,61.66
Lancaster City Council,30UH,Premier Inn,Health & Housing,Equipment and Tools - General,05/12/2017,bpc005871,61.66
Lancaster City Council,30UH,Premier Inn,Health & Housing,Equipment and Tools - General,05/12/2017,bpc005872,61.66
Lancaster City Council,30UH,Premier Inn,Health & Housing,Equipment and Tools - General,05/12/2017,bpc005873,61.66
Lancaster City Council,30UH,Premier Inn,Health & Housing,Equipment and Tools - General,05/12/2017,bpc005874,61.66
Lancaster City Council,30UH,Premier Inn,Resources,Subsistence,27/11/2017,fpc000269,171.98
Lancaster City Council,30UH,Premier Inn,Governance,Corporate Training Budget,11/10/2017,lpc000553,207.99
Lancaster City Council,30UH,Presentlines Limited,Resources,Equipment and Tools - General,04/10/2017,ppc001061,290.83
Lancaster City Council,30UH,Presentlines Limited,Resources,Equipment and Tools - General,30/10/2017,ppc001096,290.83
Lancaster City Council,30UH,PrintCarrier,Regeneration and Planning,Printing & Stationery,09/10/2017,40583,136.00
Lancaster City Council,30UH,Printed Cup Company,Environmental Services,Materials For Resale,04/12/2017,41512,-151.00
Lancaster City Council,30UH,Printed Cup Company,Environmental Services,Materials For Resale,27/11/2017,41357,907.60
Lancaster City Council,30UH,Printed.com,Regeneration and Planning,Printing & Stationery,09/10/2017,40565,137.23
Lancaster City Council,30UH,Printed.com,Regeneration and Planning,Printing & Stationery,07/11/2017,41115,204.67
Lancaster City Council,30UH,Promenade Music Ltd,Regeneration and Planning,Exhibitions & Events - Expenses,13/12/2017,npc002249,245.83
Lancaster City Council,30UH,Promenade Music Ltd,Environmental Services,Equipment and Tools - General,04/12/2017,41507,320.83
Lancaster City Council,30UH,Purple Property Group,Health & Housing,Homelessness Priority Need Order,19/12/2017,spc002619,309.00
Lancaster City Council,30UH,PVC Safety Signs,Environmental Services,Equipment and Tools - General,10/12/2017,41619,8.94
Lancaster City Council,30UH,Pye Motors,Health & Housing,Tenants Participation,19/10/2017,hpc000601,21.07
Lancaster City Council,30UH,Pye Motors,Health & Housing,Tenants Participation,19/10/2017,hpc000600,75.00
Lancaster City Council,30UH,Quality Plus,Health & Housing,Homelessness Priority Need Order,11/12/2017,spc002592,880.00
Lancaster City Council,30UH,Quickfire Tableware Ltd,Environmental Services,Materials For Resale,22/12/2017,41793,111.31
Lancaster City Council,30UH,Quickfire Tableware LTd,Environmental Services,Equipment and Tools - General,09/10/2017,40591,257.11
Lancaster City Council,30UH,Rainbow Slush,Environmental Services,Materials For Resale,16/11/2017,41240,440.25
Lancaster City Council,30UH,Ramsdens Ltd,Regeneration and Planning,Hospitality,20/11/2017,41265,106.18
Lancaster City Council,30UH,Rapid Electronics Ltd,Environmental Services,Equipment and Tools - General,01/11/2017,40981,8.04
Lancaster City Council,30UH,Rapid Electronics Ltd,Environmental Services,Equipment and Tools - General,16/10/2017,40723,8.35
Lancaster City Council,30UH,Rat Flap,Health & Housing,Materials - General,03/11/2017,spc002510,-195.31
Lancaster City Council,30UH,RBI QSS Subs,Regeneration and Planning,Books & Periodicals,09/10/2017,npc002109,319.00
Lancaster City Council,30UH,Reeds printers,Regeneration and Planning,Marketing,04/10/2017,npc002100,145.00
Lancaster City Council,30UH,Requestaplan,Health & Housing,Miscellaneous Licences,29/10/2017,bpc005752,25.50
Lancaster City Council,30UH,Rexel,Environmental Services,Equipment and Tools - General,22/12/2017,41782,155.55
Lancaster City Council,30UH,Rexel / Newey & Eyre,Environmental Services,Equipment and Tools - General,30/12/2017,41864,37.95
Lancaster City Council,30UH,Rexel UK Ltd,Environmental Services,Equipment and Tools - General,24/10/2017,40776,246.00
Lancaster City Council,30UH,RH Environmental,Health & Housing,Service Training Budget,24/11/2017,spc002557,429.30
Lancaster City Council,30UH,RLSS Direct,Health & Housing,Service Training Budget,31/10/2017,bpc005780,162.00
Lancaster City Council,30UH,RLSS Direct,Health & Housing,Service Training Budget,15/11/2017,bpc005816,765.00
Lancaster City Council,30UH,Royal British Legion,Governance,Remembrance Day,31/10/2017,dpc000590,60.00
Lancaster City Council,30UH,Royal Mail,Health & Housing,Printing & Stationery,19/12/2017,spc002618,1.50
Lancaster City Council,30UH,Ryman,Regeneration and Planning,Printing & Stationery,09/10/2017,40572,5.82
Lancaster City Council,30UH,Ryman,Regeneration and Planning,Printing & Stationery,04/10/2017,npc002098,9.97
Lancaster City Council,30UH,Ryman,Resources,Office Equipment,27/11/2017,ppc001126,49.89
Lancaster City Council,30UH,Ryman,Governance,Printing & Stationery,27/10/2017,dpc000586,93.27
Lancaster City Council,30UH,SAFETY FIRST AID,Environmental Services,First Aid Equipment,20/12/2017,41747,40.20
Lancaster City Council,30UH,Sainsburys,Health & Housing,Equipment and Tools - General,15/11/2017,spc002522,4.17
Lancaster City Council,30UH,Sainsburys,Health & Housing,Service Training Budget,10/10/2017,spc002461,11.15
Lancaster City Council,30UH,sainsburys,Health & Housing,Equipment and Tools - General,25/10/2017,spc002480,17.50
Lancaster City Council,30UH,Sainsburys,Governance,Remembrance Day,07/11/2017,dpc000597,24.04
Lancaster City Council,30UH,Sainsburys,Resources,Remembrance Day,04/12/2017,ppc001131,27.70
Lancaster City Council,30UH,Sainsburys,Environmental Services,Printing & Stationery,07/12/2017,41589,29.04
Lancaster City Council,30UH,Sainsburys,Resources,Celebrating Success Awards,30/10/2017,ppc001095,31.80
Lancaster City Council,30UH,Sainsburys,Health & Housing,Tenants Participation,31/10/2017,hpc000612,35.00
Lancaster City Council,30UH,Sainsburys,Health & Housing,Tenants Participation,17/10/2017,hpc000599,600.00
Lancaster City Council,30UH,Sally`s,Health & Housing,Equipment and Tools - General,25/10/2017,spc002481,45.50
Lancaster City Council,30UH,Sally`s beauty supplies,Health & Housing,Equipment and Tools - General,20/12/2017,spc002625,73.75
Lancaster City Council,30UH,Sallys salon services,Health & Housing,Capital Payments To Contractors,30/10/2017,spc002490,69.99
Lancaster City Council,30UH,Salmon,Regeneration and Planning,Materials For Resale,17/10/2017,40709,112.00
Lancaster City Council,30UH,Sam Turner and Sons Ltd,Environmental Services,Clothing & Uniforms,27/11/2017,41365,141.10
Lancaster City Council,30UH,sass and belle  RJB Stone,Environmental Services,Materials For Resale,10/10/2017,40625,316.00
Lancaster City Council,30UH,Scan computers,Health & Housing,Equipment and Tools - General,08/11/2017,bpc005807,12.05
Lancaster City Council,30UH,screwfix,Resources,R & M - Buildings,19/12/2017,ppc001165,4.41
Lancaster City Council,30UH,Screwfix,Environmental Services,Materials - General,23/10/2017,40749,4.54
Lancaster City Council,30UH,Screwfix,Environmental Services,Equipment and Tools - General,09/10/2017,40590,4.73
Lancaster City Council,30UH,Screwfix,Environmental Services,Materials - General,23/10/2017,40752,7.74
Lancaster City Council,30UH,Screwfix,Environmental Services,Materials - General,24/10/2017,40778,8.32
Lancaster City Council,30UH,Screwfix,Environmental Services,Materials - General,27/11/2017,41378,12.07
Lancaster City Council,30UH,Screwfix,Environmental Services,Equipment and Tools - General,06/10/2017,40530,12.50
Lancaster City Council,30UH,Screwfix,Health & Housing,Equipment and Tools - General,22/11/2017,bpc005820,13.33
Lancaster City Council,30UH,Screwfix,Environmental Services,Equipment and Tools - General,28/12/2017,41815,16.31
Lancaster City Council,30UH,Screwfix,Environmental Services,Materials - General,23/10/2017,40751,17.06
Lancaster City Council,30UH,Screwfix,Environmental Services,Equipment and Tools - General,28/12/2017,41816,18.12
Lancaster City Council,30UH,Screwfix,Environmental Services,Equipment and Tools - General,27/11/2017,41379,19.37
Lancaster City Council,30UH,Screwfix,Resources,Equipment and Tools - General,19/12/2017,ppc001166,20.83
Lancaster City Council,30UH,Screwfix,Environmental Services,Materials - General,23/10/2017,40748,21.66
Lancaster City Council,30UH,Screwfix,Environmental Services,Materials - General,24/10/2017,40767,32.45
Lancaster City Council,30UH,Screwfix,Environmental Services,Equipment and Tools - General,28/12/2017,41807,37.82
Lancaster City Council,30UH,Screwfix,Health & Housing,Equipment and Tools - General,11/12/2017,spc002589,38.30
Lancaster City Council,30UH,Screwfix,Resources,Equipment and Tools - General,15/12/2017,ppc001159,39.99
Lancaster City Council,30UH,Screwfix,Health & Housing,Equipment and Tools - General,15/11/2017,bpc005817,43.65
Lancaster City Council,30UH,Screwfix,Environmental Services,Equipment and Tools - General,27/11/2017,41380,59.42
Lancaster City Council,30UH,Screwfix,Environmental Services,Equipment and Tools - General,15/11/2017,41230,67.97
Lancaster City Council,30UH,Screwfix,Environmental Services,Materials - General,08/11/2017,41166,108.33
Lancaster City Council,30UH,Screwfix,Health & Housing,Clothing & Uniforms,11/12/2017,spc002588,191.96
Lancaster City Council,30UH,Screwfix,Environmental Services,Equipment and Tools - General,28/12/2017,41894,376.60
Lancaster City Council,30UH,Screwfix,Resources,Equipment and Tools - General,15/12/2017,ppc001160,525.71
Lancaster City Council,30UH,SETON,Environmental Services,Contracted Services,29/11/2017,41410,369.80
Lancaster City Council,30UH,Shapeways,Resources,Capital Payments To Contractors,03/10/2017,jpc001106,24.09
Lancaster City Council,30UH,Shared Earth UK Ltd,Environmental Services,Materials For Resale,15/11/2017,41238,124.06
Lancaster City Council,30UH,Shell Rooley Lane Bradford,Regeneration and Planning,Petrol & Derv,17/10/2017,npc002116,41.67
Lancaster City Council,30UH,Sherwood Leisure,Health & Housing,Tenants Participation,16/10/2017,hpc000597,-88.28
Lancaster City Council,30UH,Shoes for crews,Health & Housing,Corporate Safety,21/12/2017,spc002627,56.38
Lancaster City Council,30UH,Signs Express,Health & Housing,Printing & Stationery,07/11/2017,bpc005796,132.58
Lancaster City Council,30UH,Silver Door ,Regeneration and Planning,Exhibitions & Events - Expenses,01/11/2017,npc002141,-270.00
Lancaster City Council,30UH,Slater Safety,Health & Housing,Equipment and Tools - General,04/10/2017,spc002428,5.00
Lancaster City Council,30UH,Slater Safety,Health & Housing,Equipment and Tools - General,03/10/2017,spc002421,23.98
Lancaster City Council,30UH,Slater Safety,Environmental Services,Clothing & Uniforms,06/11/2017,41054,33.98
Lancaster City Council,30UH,Snap Frames Warehouse,Environmental Services,Office Equipment,07/11/2017,41075,57.46
Lancaster City Council,30UH,Solace Group Ltd,Management Team,Professional Fees Etc,15/11/2017,mpc000091,398.00
Lancaster City Council,30UH,Solopress,Regeneration and Planning,Printing & Stationery,09/10/2017,40576,36.00
Lancaster City Council,30UH,Sous vide tools.com,Health & Housing,Equipment and Tools - General,21/11/2017,spc002542,550.00
Lancaster City Council,30UH,Sousvide tools.com,Health & Housing,Equipment and Tools - General,24/11/2017,spc002555,1100.00
Lancaster City Council,30UH,Spar,Regeneration and Planning,Marketing,07/11/2017,41105,3.99
Lancaster City Council,30UH,Spares 2 Go,Environmental Services,Cleaning Materials,07/11/2017,41128,27.49
Lancaster City Council,30UH,Sports Direct,Environmental Services,Conferences & Seminars,28/11/2017,41395,25.00
Lancaster City Council,30UH,Sports Direct,Health & Housing,Clothing & Uniforms,28/10/2017,bpc005728,31.66
Lancaster City Council,30UH,Sports Direct,Health & Housing,Clothing & Uniforms,28/10/2017,bpc005733,37.49
Lancaster City Council,30UH,Sports Direct,Health & Housing,Clothing & Uniforms,29/12/2017,bpc005916,141.66
Lancaster City Council,30UH,St Winifreds,Health & Housing,Homelessness Priority Need Order,20/12/2017,spc002623,60.00
Lancaster City Council,30UH,St Winifreds,Health & Housing,Services - Bed and Breakfast,14/12/2017,spc002609,60.00
Lancaster City Council,30UH,St Winifreds,Health & Housing,Services - Bed and Breakfast,30/10/2017,spc002489,150.00
Lancaster City Council,30UH,St Winifreds,Health & Housing,Services - Bed and Breakfast,06/11/2017,spc002513,210.00
Lancaster City Council,30UH,St Winifreds,Health & Housing,Services - Bed and Breakfast,06/12/2017,spc002584,240.00
Lancaster City Council,30UH,St Winifreds,Health & Housing,Services - Bed and Breakfast,20/12/2017,spc002622,300.00
Lancaster City Council,30UH,St Winifreds,Health & Housing,Services - Bed and Breakfast,11/10/2017,spc002463,415.00
Lancaster City Council,30UH,St Winifreds,Health & Housing,Services - Bed and Breakfast,16/10/2017,spc002466,535.00
Lancaster City Council,30UH,St Winifreds,Health & Housing,Services - Bed and Breakfast,02/10/2017,spc002416,590.00
Lancaster City Council,30UH,St Winifreds,Health & Housing,Services - Bed and Breakfast,24/11/2017,spc002556,630.00
Lancaster City Council,30UH,St Winifreds,Health & Housing,Homelessness Priority Need Order,14/12/2017,spc002609,750.00
Lancaster City Council,30UH,STA,Health & Housing,Materials For Resale,30/11/2017,bpc005852,9.60
Lancaster City Council,30UH,STA,Health & Housing,Service Training Budget,30/11/2017,bpc005851,9.60
Lancaster City Council,30UH,STA,Health & Housing,Service Training Budget,24/11/2017,bpc005835,10.00
Lancaster City Council,30UH,STA,Health & Housing,Service Training Budget,04/12/2017,bpc005864,20.00
Lancaster City Council,30UH,STA,Health & Housing,Service Training Budget,30/11/2017,bpc005850,49.00
Lancaster City Council,30UH,Star Editions,Regeneration and Planning,Materials For Resale,10/10/2017,40620,287.09
Lancaster City Council,30UH,STARLIGHT,Health & Housing,Equipment Funded by Reserves,09/10/2017,hpc000592,19.37
Lancaster City Council,30UH,Station,Regeneration and Planning,Exhibitions & Events - Expenses,13/12/2017,npc002247,43.41
Lancaster City Council,30UH,Station Garage,Regeneration and Planning,Petrol & Derv,04/10/2017,npc002099,47.15
Lancaster City Council,30UH,Station Garage,Regeneration and Planning,Petrol & Derv,08/11/2017,npc002181,61.50
Lancaster City Council,30UH,Studio Arts,Governance,Civic Receptions & Mayoral Functions,07/11/2017,dpc000595,4.27
Lancaster City Council,30UH,Studio Arts,Regeneration and Planning,Exhibitions,07/11/2017,41090,18.16
Lancaster City Council,30UH,Summerfield Books,Environmental Services,Equipment and Tools - General,22/12/2017,41775,45.35
Lancaster City Council,30UH,Survey Monkey,Regeneration and Planning,Internet Provision,09/10/2017,40579,35.00
Lancaster City Council,30UH,SurveyMonkey,Regeneration and Planning,Internet Provision,29/12/2017,41835,35.00
Lancaster City Council,30UH,SurveyMonkey ,Regeneration and Planning,Internet Provision,07/11/2017,41098,35.00
Lancaster City Council,30UH,Sykes Pumps,Health & Housing,Grant to Residential Properties,05/10/2017,spc002430,11321.52
Lancaster City Council,30UH,TAYLOR TRAING SERVICES (UK) LT,Environmental Services,Service Training Budget,24/11/2017,41340,640.00
Lancaster City Council,30UH,Tenable,Resources,I.T. Security,03/11/2017,jpc001149,2136.34
Lancaster City Council,30UH,Tesco,Regeneration and Planning,Hospitality,14/12/2017,npc002250,5.58
Lancaster City Council,30UH,Text Anywhere,Health & Housing,Marketing,29/12/2017,bpc005906,36.00
Lancaster City Council,30UH,Text Anywhere,Health & Housing,Marketing,01/11/2017,bpc005786,36.00
Lancaster City Council,30UH,The Law Society,Governance,Service Training Budget,09/10/2017,lpc000544,318.00
Lancaster City Council,30UH,The Law Society,Governance,Service Training Budget,09/10/2017,lpc000545,318.00
Lancaster City Council,30UH,The Law Society,Governance,Service Training Budget,09/10/2017,lpc000546,318.00
Lancaster City Council,30UH,The Law Socirty,Governance,Service Training Budget,09/10/2017,lpc000547,318.00
Lancaster City Council,30UH,The Market Cobbler,Environmental Services,Equipment and Tools - General,10/12/2017,41617,2.00
Lancaster City Council,30UH,The Market Cobbler,Resources,Equipment and Tools - General,09/10/2017,ppc001065,5.00
Lancaster City Council,30UH,The Market Cobbler,Resources,R & M - Buildings,12/12/2017,ppc001157,18.00
Lancaster City Council,30UH,The Marketgate Cobbler,Resources,Equipment and Tools - General,28/12/2017,ppc001170,36.55
Lancaster City Council,30UH,The Midland Hotel,Regeneration and Planning,Hospitality,03/10/2017,npc002094,177.50
Lancaster City Council,30UH,The Morecambe Bay Hotel,Health & Housing,Services - Bed and Breakfast,19/12/2017,spc002617,70.00
Lancaster City Council,30UH,The Morecambe Bay Hotel,Health & Housing,Services - Bed and Breakfast,01/12/2017,spc002571,95.00
Lancaster City Council,30UH,The Morecambe Bay Hotel,Health & Housing,Services - Bed and Breakfast,27/11/2017,spc002558,112.50
Lancaster City Council,30UH,The Morecambe Hotel,Regeneration and Planning,Hospitality,28/11/2017,npc002214,20.54
Lancaster City Council,30UH,The One Stop Plastics Shop Ltd,Environmental Services,R & M - General,13/12/2017,41661,633.08
Lancaster City Council,30UH,The Party Place,Regeneration and Planning,Printing & Stationery,12/12/2017,npc002241,3.54
Lancaster City Council,30UH,The Post Office,Resources,Computer Consumables,03/10/2017,jpc001112,7.80
Lancaster City Council,30UH,The Rat Flap,Health & Housing,Materials - General,30/10/2017,spc002485,877.32
Lancaster City Council,30UH,The Regency Bristol,Health & Housing,Service Training Budget,30/11/2017,bpc005847,137.50
Lancaster City Council,30UH,The Register Office,Health & Housing,Services - Burial Of The Dead,24/10/2017,spc002476,4.00
Lancaster City Council,30UH,The Register Office,Health & Housing,Services - Burial Of The Dead,15/12/2017,spc002611,4.00
Lancaster City Council,30UH,THE SILVERDALE HOTEL LTD,Regeneration and Planning,Management Plan Projects,15/12/2017,npc002253,190.75
Lancaster City Council,30UH,The Station,Regeneration and Planning,Exhibitions & Events - Expenses,01/10/2017,npc002072,34.53
Lancaster City Council,30UH,The Station,Regeneration and Planning,Exhibitions & Events - Expenses,21/11/2017,npc002193,40.18
Lancaster City Council,30UH,The Trainline,Health & Housing,Children & Young People,09/10/2017,hpc000594,7.80
Lancaster City Council,30UH,The Trainline,Health & Housing,Children & Young People,09/10/2017,hpc000595,8.93
Lancaster City Council,30UH,The Trainline,Governance,Use Of Public Tpt - Officers,06/12/2017,lpc000595,12.85
Lancaster City Council,30UH,The Trainline,Resources,Use Of Public Tpt - Officers,29/12/2017,rpc000114,16.57
Lancaster City Council,30UH,The Trainline,Environmental Services,Car Allowances - Officers,24/10/2017,40932,51.31
Lancaster City Council,30UH,The Trainline,Health & Housing,Use Of Public Tpt - Officers,30/11/2017,spc002569,56.61
Lancaster City Council,30UH,The Uniform & Leisurewear Company Ltd,Environmental Services,Clothing & Uniforms,06/11/2017,41057,31.50
Lancaster City Council,30UH,The Uniform & Leisurewear Company Ltd,Health & Housing,Equipment and Tools - General,07/11/2017,spc002516,94.47
Lancaster City Council,30UH,The Uniform & Leisurewear Company Ltd,Health & Housing,Clothing & Uniforms,02/10/2017,spc002417,211.65
Lancaster City Council,30UH,The Veterinary Health Centre L,Environmental Services,Services - Vets,15/11/2017,41236,979.63
Lancaster City Council,30UH,The Veyerinary Health Centre L,Environmental Services,Services - Vets,22/12/2017,41789,497.88
Lancaster City Council,30UH,The Works,Regeneration and Planning,Exhibitions,07/11/2017,41092,20.04
Lancaster City Council,30UH,Thomas Graham,Resources,Cleaning Materials,30/10/2017,ppc001094,50.14
Lancaster City Council,30UH,Thomas Graham,Resources,Cleaning Materials,08/12/2017,ppc001156,53.09
Lancaster City Council,30UH,Thomas Graham,Resources,Cleaning Materials,30/10/2017,ppc001097,69.17
Lancaster City Council,30UH,Thomas Graham,Resources,Cleaning Materials,30/10/2017,ppc001093,70.38
Lancaster City Council,30UH,Thomas Graham,Regeneration and Planning,Cleaning Materials,09/11/2017,npc002182,184.72
Lancaster City Council,30UH,Thomas Graham,Health & Housing,Cleansing Equipment,23/10/2017,bpc005724,206.05
Lancaster City Council,30UH,Thomas Graham,Resources,Cleaning Materials,07/12/2017,ppc001134,347.60
Lancaster City Council,30UH,Thomas Graham,Resources,Cleaning Materials,13/10/2017,ppc001082,539.12
Lancaster City Council,30UH,Thomas Graham ,Health & Housing,Cleansing Equipment,23/10/2017,bpc005725,11.00
Lancaster City Council,30UH,Thomas Graham ,Environmental Services,Cleaning Materials,27/10/2017,40809,12.42
Lancaster City Council,30UH,Thomas Graham ,Environmental Services,Materials - General,05/12/2017,41554,25.90
Lancaster City Council,30UH,Thomas Graham ,Environmental Services,Materials - General,09/11/2017,41195,31.71
Lancaster City Council,30UH,Thomas Graham ,Environmental Services,Equipment and Tools - General,05/12/2017,41543,36.95
Lancaster City Council,30UH,Thomas Graham ,Environmental Services,Clothing & Uniforms,05/12/2017,41578,83.25
Lancaster City Council,30UH,Thomas Graham ,Environmental Services,Materials - General,05/12/2017,41557,89.08
Lancaster City Council,30UH,Thomas Graham ,Environmental Services,Services - Trade Refuse,21/11/2017,41267,186.60
Lancaster City Council,30UH,Thomas Graham ,Environmental Services,Cleaning Materials,28/11/2017,41388,201.68
Lancaster City Council,30UH,Thos Graham,Regeneration and Planning,R & M - Sea & River / Promenade,13/12/2017,npc002244,17.16
Lancaster City Council,30UH,Thos Graham,Regeneration and Planning,Equipment and Tools - General,07/11/2017,npc002166,19.30
Lancaster City Council,30UH,Thos Graham,Regeneration and Planning,Equipment and Tools - General,06/11/2017,npc002148,23.38
Lancaster City Council,30UH,Thos Graham,Regeneration and Planning,Equipment and Tools - General,06/11/2017,npc002149,35.66
Lancaster City Council,30UH,TicketMart,Regeneration and Planning,Printing & Stationery,09/10/2017,40580,495.00
Lancaster City Council,30UH,TICKETSOURCE,Regeneration and Planning,Service Training Budget,15/11/2017,npc002189,5.75
Lancaster City Council,30UH,Time for Flowers,Environmental Services,Materials - General,09/11/2017,41221,41.60
Lancaster City Council,30UH,Timpson,Environmental Services,Equipment and Tools - General,21/11/2017,41283,7.50
Lancaster City Council,30UH,Timpson,Environmental Services,Equipment and Tools - General,17/10/2017,40697,12.00
Lancaster City Council,30UH,Timpson,Environmental Services,Materials - General,23/10/2017,40750,12.50
Lancaster City Council,30UH,Timpsons,Environmental Services,Equipment and Tools - General,14/12/2017,41696,7.50
Lancaster City Council,30UH,TK Maxx,Governance,Celebrating Success Awards,31/10/2017,lpc000572,30.02
Lancaster City Council,30UH,Topgift,Health & Housing,Equipment and Tools - General,04/10/2017,spc002427,10.00
Lancaster City Council,30UH,TP Express,Regeneration and Planning,Use Of Public Tpt - Officers,07/11/2017,npc002173,15.50
Lancaster City Council,30UH,TP Express,Regeneration and Planning,Use Of Public Tpt - Officers,09/11/2017,npc002184,17.50
Lancaster City Council,30UH,TP Express,Regeneration and Planning,Use Of Public Tpt - Officers,07/11/2017,npc002175,17.80
Lancaster City Council,30UH,TP Express,Regeneration and Planning,Use Of Public Tpt - Officers,22/11/2017,npc002198,54.90
Lancaster City Council,30UH,TP Express,Regeneration and Planning,Use Of Public Tpt - Officers,07/11/2017,npc002170,79.20
Lancaster City Council,30UH,TP Express,Regeneration and Planning,Use Of Public Tpt - Officers,07/11/2017,npc002172,239.00
Lancaster City Council,30UH,Tracks 2000,Health & Housing,Equipment and Tools - General,28/10/2017,bpc005727,183.33
Lancaster City Council,30UH,Transpenine Express,Regeneration and Planning,Use Of Public Tpt - Officers,22/11/2017,41290,9.80
Lancaster City Council,30UH,Transpennine Express,Regeneration and Planning,Use Of Public Tpt - Officers,22/11/2017,41289,12.00
Lancaster City Council,30UH,Travellers B&B ,Regeneration and Planning,Service Training Budget,17/10/2017,npc002115,97.00
Lancaster City Council,30UH,Travelodge,Environmental Services,R & M - Buildings,07/11/2017,41087,-42.50
Lancaster City Council,30UH,Travelodge,Environmental Services,R & M - Buildings,07/11/2017,41088,-10.50
Lancaster City Council,30UH,Travelodge,Health & Housing,Miscellaneous Expenditure,27/11/2017,hpc000633,30.00
Lancaster City Council,30UH,Travelodge,Health & Housing,Miscellaneous Expenditure,27/11/2017,hpc000628,30.00
Lancaster City Council,30UH,Travelodge,Health & Housing,Miscellaneous Expenditure,27/11/2017,hpc000626,46.67
Lancaster City Council,30UH,Travelodge,Health & Housing,Services - Bed and Breakfast,28/11/2017,spc002563,90.00
Lancaster City Council,30UH,Travelodge,Health & Housing,Services - Bed and Breakfast,28/11/2017,spc002560,111.67
Lancaster City Council,30UH,Travelodge,Resources,Subsistence,03/10/2017,jpc001109,142.50
Lancaster City Council,30UH,Travelodge,Resources,Service Training Budget,03/11/2017,jpc001148,150.83
Lancaster City Council,30UH,Travelodge,Health & Housing,Services - Bed and Breakfast,27/11/2017,spc002559,183.33
Lancaster City Council,30UH,Travelodge,Health & Housing,Services - Bed and Breakfast,11/12/2017,spc002599,222.50
Lancaster City Council,30UH,Travelodge,Health & Housing,Services - Bed and Breakfast,11/12/2017,spc002600,373.33
Lancaster City Council,30UH,Travelodge,Health & Housing,Services - Bed and Breakfast,11/12/2017,spc002598,639.00
Lancaster City Council,30UH,Travis Perkins,Environmental Services,Materials - General,24/10/2017,40765,18.55
Lancaster City Council,30UH,Travis Perkins,Environmental Services,Materials - General,30/10/2017,40897,18.90
Lancaster City Council,30UH,Travis Perkins,Health & Housing,Materials (Minor Adaptations),20/11/2017,spc002531,20.64
Lancaster City Council,30UH,Travis Perkins,Health & Housing,Materials (Minor Adaptations),20/11/2017,spc002525,23.37
Lancaster City Council,30UH,Travis Perkins,Environmental Services,Equipment and Tools - General,10/10/2017,40628,24.32
Lancaster City Council,30UH,Travis Perkins,Environmental Services,Materials - General,30/10/2017,40905,26.76
Lancaster City Council,30UH,Travis Perkins,Health & Housing,Materials (Minor Adaptations),20/11/2017,spc002526,27.25
Lancaster City Council,30UH,Travis Perkins,Environmental Services,Materials - General,28/12/2017,41895,36.72
Lancaster City Council,30UH,Travis Perkins,Health & Housing,Materials (Minor Adaptations),20/11/2017,spc002533,41.61
Lancaster City Council,30UH,Travis Perkins,Health & Housing,Materials (Minor Adaptations),20/11/2017,spc002529,47.66
Lancaster City Council,30UH,Travis Perkins,Health & Housing,Materials (Minor Adaptations),20/11/2017,spc002530,58.64
Lancaster City Council,30UH,Travis Perkins,Environmental Services,Materials - General,28/12/2017,41896,60.41
Lancaster City Council,30UH,Travis Perkins,Environmental Services,Materials - General,22/12/2017,41774,60.90
Lancaster City Council,30UH,Travis Perkins,Health & Housing,Materials (Minor Adaptations),20/11/2017,spc002524,62.50
Lancaster City Council,30UH,Travis Perkins,Health & Housing,Materials (Minor Adaptations),20/11/2017,spc002528,65.86
Lancaster City Council,30UH,Travis Perkins,Health & Housing,Materials (Minor Adaptations),06/12/2017,spc002580,70.46
Lancaster City Council,30UH,Travis Perkins,Health & Housing,Materials (Minor Adaptations),07/11/2017,spc002514,74.56
Lancaster City Council,30UH,Travis Perkins,Health & Housing,Materials (Minor Adaptations),06/12/2017,spc002581,79.77
Lancaster City Council,30UH,Travis Perkins,Environmental Services,Materials - General,04/12/2017,41514,155.03
Lancaster City Council,30UH,Travis Perkins,Environmental Services,Materials - General,04/12/2017,41515,175.09
Lancaster City Council,30UH,Travis Perkins,Health & Housing,Equipment and Tools - General,20/11/2017,spc002535,186.56
Lancaster City Council,30UH,Tudor Turf Wholesale,Environmental Services,Materials - General,23/10/2017,40738,102.50
Lancaster City Council,30UH,UK Business Supplies Limited,Resources,Catering Provisions,27/11/2017,ppc001121,229.98
Lancaster City Council,30UH,UK Pos,Health & Housing,Equipment and Tools - General,29/12/2017,bpc005918,117.82
Lancaster City Council,30UH,UK Safety Store,Environmental Services,R & M - Buildings (Within Service),06/10/2017,40531,9.50
Lancaster City Council,30UH,UK Safety Store,Resources,R & M - Buildings,31/10/2017,ppc001098,95.83
Lancaster City Council,30UH,Ultimate Outdoors,Health & Housing,Equipment and Tools - General,09/10/2017,spc002458,58.33
Lancaster City Council,30UH,Unform and Leisre,Health & Housing,Equipment and Tools - General,04/12/2017,spc002578,83.41
Lancaster City Council,30UH,Uniform and Leisurewaear Compa,Environmental Services,Clothing & Uniforms,04/12/2017,41508,56.50
Lancaster City Council,30UH,Uniform and leisurewear,Regeneration and Planning,Clothing & Uniforms,06/10/2017,npc002108,677.61
Lancaster City Council,30UH,Urban Smoothie Bikes,Governance,Equipment and Tools - General,11/10/2017,lpc000549,320.00
Lancaster City Council,30UH,Venngage,Governance,Performance Improvement Support,30/11/2017,lpc000593,74.46
Lancaster City Council,30UH,VENNGAGE.COM,Health & Housing,Subscriptions,09/10/2017,hpc000593,72.44
Lancaster City Council,30UH,Viking,Environmental Services,Materials - General,22/11/2017,41305,17.85
Lancaster City Council,30UH,Viking,Regeneration and Planning,Printing & Stationery,09/10/2017,40586,22.49
Lancaster City Council,30UH,Viking,Environmental Services,Printing & Stationery,28/12/2017,41806,24.38
Lancaster City Council,30UH,Viking,Environmental Services,Printing & Stationery,14/12/2017,41695,34.89
Lancaster City Council,30UH,Viking,Regeneration and Planning,Printing & Stationery,29/11/2017,41417,46.05
Lancaster City Council,30UH,Viking,Environmental Services,Office Equipment,04/12/2017,41530,52.47
Lancaster City Council,30UH,Viking,Regeneration and Planning,Printing & Stationery,02/10/2017,40454,95.96
Lancaster City Council,30UH,Viking,Environmental Services,Printing & Stationery,23/10/2017,40747,117.43
Lancaster City Council,30UH,Viovet.co.uk,Environmental Services,Equipment and Tools - General,27/11/2017,41352,34.47
Lancaster City Council,30UH,ViperGas,Environmental Services,Service Training Budget,24/11/2017,41339,6.99
Lancaster City Council,30UH,ViperGas,Environmental Services,Service Training Budget,24/11/2017,41338,99.99
Lancaster City Council,30UH,Virgin Trains,Health & Housing,Tenants Participation,20/12/2017,hpc000651,-108.34
Lancaster City Council,30UH,Virgin Trains,Health & Housing,Tenants Participation,31/10/2017,hpc000613,0.50
Lancaster City Council,30UH,Virgin Trains,Health & Housing,Children & Young People,09/11/2017,hpc000623,4.92
Lancaster City Council,30UH,Virgin Trains,Governance,Use Of Public Tpt - Officers,25/10/2017,dpc000582,8.90
Lancaster City Council,30UH,Virgin Trains,Health & Housing,Children & Young People,22/11/2017,hpc000625,9.83
Lancaster City Council,30UH,Virgin Trains,Governance,Use Of Public Tpt - Officers,26/10/2017,dpc000584,11.70
Lancaster City Council,30UH,Virgin Trains,Governance,Use Of Public Tpt - Officers,01/12/2017,dpc000598,13.80
Lancaster City Council,30UH,Virgin Trains,Resources,Use Of Public Tpt - Officers,01/12/2017,jpc001157,14.80
Lancaster City Council,30UH,Virgin Trains,Health & Housing,Services - General,26/10/2017,hpc000603,14.83
Lancaster City Council,30UH,Virgin Trains,Health & Housing,Tenants Participation,29/11/2017,hpc000635,18.67
Lancaster City Council,30UH,Virgin Trains,Governance,Use Of Public Tpt - Officers,30/11/2017,dpc000592,21.00
Lancaster City Council,30UH,Virgin Trains,Resources,Use Of Public Tpt - Officers,27/11/2017,fpc000268,22.40
Lancaster City Council,30UH,Virgin Trains,Resources,Use Of Public Tpt - Officers,01/12/2017,jpc001159,24.40
Lancaster City Council,30UH,Virgin Trains,Resources,Use Of Public Tpt - Officers,14/11/2017,fpc000266,24.40
Lancaster City Council,30UH,Virgin Trains,Health & Housing,Materials - General,14/12/2017,spc002607,27.70
Lancaster City Council,30UH,Virgin Trains,Governance,Service Training Budget,30/11/2017,lpc000590,31.00
Lancaster City Council,30UH,Virgin Trains,Governance,Use Of Public Tpt - Officers,30/11/2017,dpc000593,32.80
Lancaster City Council,30UH,Virgin Trains,Health & Housing,Service Training Budget,06/11/2017,hpc000619,34.62
Lancaster City Council,30UH,Virgin Trains,Resources,Use Of Public Tpt - Officers,27/11/2017,fpc000267,35.00
Lancaster City Council,30UH,Virgin Trains,Governance,Service Training Budget,30/11/2017,lpc000589,45.00
Lancaster City Council,30UH,Virgin Trains,Health & Housing,Use Of Public Tpt - Officers,28/11/2017,spc002561,47.20
Lancaster City Council,30UH,Virgin Trains,Resources,Use Of Public Tpt - Officers,03/10/2017,jpc001107,48.80
Lancaster City Council,30UH,Virgin Trains,Health & Housing,Use Of Public Tpt - Officers,28/11/2017,spc002562,51.10
Lancaster City Council,30UH,Virgin Trains,Regeneration and Planning,Use Of Public Tpt - Officers,22/11/2017,npc002200,60.00
Lancaster City Council,30UH,Virgin Trains,Management Team,Use Of Public Tpt - Officers,31/10/2017,mpc000090,73.20
Lancaster City Council,30UH,Virgin Trains,Resources,Use Of Public Tpt - Officers,03/11/2017,jpc001147,75.00
Lancaster City Council,30UH,Virgin Trains,Management Team,Use Of Public Tpt - Officers,16/10/2017,mpc000087,93.20
Lancaster City Council,30UH,Virgin Trains,Governance,Members Expenses - Travel,11/10/2017,dpc000579,95.20
Lancaster City Council,30UH,Virgin Trains,Governance,Members Expenses - Travel,25/10/2017,dpc000583,95.20
Lancaster City Council,30UH,Virgin Trains,Resources,Use Of Public Tpt - Officers,01/12/2017,jpc001158,127.00
Lancaster City Council,30UH,Virgin Trains,Management Team,Use Of Public Tpt - Officers,15/11/2017,mpc000092,127.65
Lancaster City Council,30UH,Virgin Trains,Management Team,Use Of Public Tpt - Officers,27/10/2017,mpc000089,135.40
Lancaster City Council,30UH,Virgin Trains,Resources,Use Of Public Tpt - Officers,08/11/2017,fpc000263,141.75
Lancaster City Council,30UH,Virgin Trains,Health & Housing,Tenants Participation,17/10/2017,hpc000598,146.67
Lancaster City Council,30UH,Virgin Trains,Resources,Use Of Public Tpt - Officers,03/10/2017,jpc001108,159.90
Lancaster City Council,30UH,Virgin Trains,Regeneration and Planning,Use Of Public Tpt - Officers,07/11/2017,npc002176,285.60
Lancaster City Council,30UH,Virgin Trains,Regeneration and Planning,Use Of Public Tpt - Officers,25/10/2017,npc002131,352.95
Lancaster City Council,30UH,VisionXplode,Regeneration and Planning,Marketing,09/10/2017,40595,35.99
Lancaster City Council,30UH,VMware,Resources,Infrastructure - Update & Maintenance,29/11/2017,jpc001154,549.80
Lancaster City Council,30UH,VMware,Resources,Infrastructure - Update & Maintenance,29/11/2017,jpc001155,1099.74
Lancaster City Council,30UH,Vodafone,Health & Housing,Contracted Services,06/11/2017,hpc000620,100.00
Lancaster City Council,30UH,Wang You Xing,Resources,Equipment and Tools - General,08/11/2017,fpc000265,6.96
Lancaster City Council,30UH,washing.net.co.uk,Health & Housing,Equipment and Tools - General,06/10/2017,spc002441,173.95
Lancaster City Council,30UH,washing.net.co.uk,Health & Housing,Equipment and Tools - General,06/10/2017,spc002444,173.95
Lancaster City Council,30UH,Waterhouse,Health & Housing,Hospitality,01/12/2017,bpc005861,21.24
Lancaster City Council,30UH,WBS Transport Ltd,Health & Housing,Homelessness Priority Need Order,11/12/2017,spc002591,183.33
Lancaster City Council,30UH,Webcandy Ltd,Regeneration and Planning,Marketing,06/11/2017,npc002155,0.78
Lancaster City Council,30UH,Webcandy Ltd,Regeneration and Planning,Marketing,06/11/2017,npc002156,7.77
Lancaster City Council,30UH,Webcandy Ltd,Regeneration and Planning,Marketing,06/11/2017,npc002157,7.79
Lancaster City Council,30UH,Webcandy Ltd,Regeneration and Planning,Marketing,06/11/2017,npc002158,7.82
Lancaster City Council,30UH,West Coast Trains,Resources,Use Of Public Tpt - Officers,03/10/2017,jpc001110,82.40
Lancaster City Council,30UH,West Coast Trains,Resources,Use Of Public Tpt - Officers,03/11/2017,jpc001152,82.40
Lancaster City Council,30UH,White Paper,Governance,Service Training Budget,29/12/2017,lpc000613,398.00
Lancaster City Council,30UH,WHSmith,Regeneration and Planning,Printing & Stationery,04/12/2017,41534,3.00
Lancaster City Council,30UH,WHSmith,Governance,Printing & Stationery,19/10/2017,dpc000581,7.50
Lancaster City Council,30UH,Wickes,Health & Housing,Equipment and Tools - General,13/11/2017,spc002520,40.74
Lancaster City Council,30UH,Wickes,Environmental Services,Clothing & Uniforms,06/11/2017,41031,49.99
Lancaster City Council,30UH,Wicksteed Leisure Limited,Environmental Services,Materials - General,13/11/2017,41208,140.66
Lancaster City Council,30UH,Wilko Retail ,Regeneration and Planning,Entertainment Fees,18/12/2017,41713,2.50
Lancaster City Council,30UH,Wilko Retail ,Resources,Equipment and Tools - General,24/10/2017,ppc001086,2.96
Lancaster City Council,30UH,Wilko Retail ,Governance,Printing & Stationery,21/12/2017,lpc000598,3.90
Lancaster City Council,30UH,Wilko Retail ,Governance,Celebrating Success Awards,31/10/2017,lpc000558,4.80
Lancaster City Council,30UH,Wilko Retail ,Governance,Civic Receptions & Mayoral Functions,07/11/2017,dpc000596,6.25
Lancaster City Council,30UH,Wilko Retail ,Regeneration and Planning,Marketing,07/11/2017,41118,6.75
Lancaster City Council,30UH,Wilko Retail ,Regeneration and Planning,Office Equipment,27/10/2017,40812,8.00
Lancaster City Council,30UH,Wilko Retail ,Resources,Equipment and Tools - General,04/12/2017,ppc001129,8.33
Lancaster City Council,30UH,Wilko Retail ,Governance,Celebrating Success Awards,31/10/2017,lpc000580,10.00
Lancaster City Council,30UH,Wilko Retail ,Regeneration and Planning,Printing & Stationery,05/12/2017,41580,10.00
Lancaster City Council,30UH,Wilko Retail ,Governance,Celebrating Success Awards,31/10/2017,lpc000557,10.05
Lancaster City Council,30UH,Wilko Retail ,Resources,Equipment and Tools - General,09/10/2017,ppc001064,10.83
Lancaster City Council,30UH,Wilko Retail ,Resources,Equipment and Tools - General,04/12/2017,ppc001128,12.50
Lancaster City Council,30UH,Wilko Retail ,Governance,Civic Receptions & Mayoral Functions,19/12/2017,dpc000602,15.46
Lancaster City Council,30UH,Wilko Retail ,Resources,Equipment and Tools - General,03/11/2017,ppc001100,17.50
Lancaster City Council,30UH,Wilko Retail ,Governance,Service Training Budget,30/11/2017,lpc000587,18.05
Lancaster City Council,30UH,Wilko Retail ,Health & Housing,Services - General,08/11/2017,hpc000622,18.33
Lancaster City Council,30UH,Wilko Retail ,Resources,R & M - Buildings,24/10/2017,ppc001086,31.25
Lancaster City Council,30UH,Wilko Retail ,Regeneration and Planning,Office Equipment,02/10/2017,40444,33.05
Lancaster City Council,30UH,Wilko Retail ,Resources,Equipment and Tools - General,24/10/2017,ppc001087,43.37
Lancaster City Council,30UH,Wilko Retail ,Governance,Celebrating Success Awards,31/10/2017,lpc000559,104.00
Lancaster City Council,30UH,World Stores,Health & Housing,Equipment and Tools - General,29/10/2017,bpc005753,125.00
Lancaster City Council,30UH,Wright and Lord,Governance,Services - Legal Costs,31/10/2017,lpc000566,300.00
Lancaster City Council,30UH,Wright and Lord,Governance,Services - Legal Costs,29/12/2017,lpc000604,300.00
Lancaster City Council,30UH,Wright and Lord,Governance,Services - Legal Costs,29/12/2017,lpc000605,300.00
Lancaster City Council,30UH,Wright and Lord,Governance,Services - Legal Costs,29/12/2017,lpc000606,300.00
Lancaster City Council,30UH,XL Displays,Governance,Celebrating Success Awards,31/10/2017,lpc000567,62.00
Lancaster City Council,30UH,XL Displays,Governance,Celebrating Success Awards,11/10/2017,lpc000552,74.00
Lancaster City Council,30UH,Yes Cartridges,Resources,Printing & Stationery,31/10/2017,rpc000112,37.37
Lancaster City Council,30UH,Yorkshire Christmas Trees ,Environmental Services,Materials - General,03/11/2017,41022,445.92
Lancaster City Council,30UH,Yorkshire Christmas Trees ,Environmental Services,Materials - General,01/11/2017,40970,8333.33
Lancaster City Council,30UH,Yueying,Environmental Services,Mobile Telephones,09/10/2017,40690,10.17
Lancaster City Council,30UH,Zep Uk Ltd,Environmental Services,Materials - General,09/10/2017,40612,400.00
